{"text_format":"1","workbook":"xlsx","n_sheets":6,"sheets":["Умная Т","Все МО","10 лучших","10 худших","Помесячно по МО","Дашборд ДВН"],"not_rendered":{"charts":8,"images":3,"macros":1,"external_links":0,"defined_names":2,"comments":0,"pivot_tables":4},"unopened":[],"bounds":{"document_bytes":16777216,"sheet_cells":100000,"rows_first":2000,"rows_last":500,"rows_between":2000,"halvings":0,"cell_chars":16384,"cell_head_chars":4096},"cells_cut":0,"cells_raw":0,"read":"whole","date_system":"1900"}

{"sheet":"Умная Т","index":0,"n_rows":243,"n_cols":67,"rows_kept":243,"cut":false,"hidden":true,"merged":[]}
[null,null,"Калужская область",{"$f":"SUM(Таблица1[Оплачено случаев])","v":82434},null,{"$f":"SUM(Таблица1[План ДВН, чел.])","v":64561},null,null,"Выполнение плана, %",{"$f":"ROUND(D1/F1,3)","v":1.2769999999999999},null,null,null,null,null,{"$f":"(K24+P24+U24+Z24+AE24+AJ24+AO24+AT24+AY24+BD24+BI24+BN24)/(J24+O24+T24+Y24+AD24+AI24+AN24+AS24+AX24++BC24+BH24+BM24)*1000","v":2203.891305165344}]
[null,null,"Средний тариф ДВН",{"$f":"P1","v":2203.891305165344},null,null,null,null,null,null,"ФАКТ","ПЛАН",null,null,"ФАКТ",null,"ПЛАН",null,null,"ФАКТ",null,"ПЛАН",null,null,"ФАКТ",null,"ПЛАН",null,null,"ФАКТ",null,"ПЛАН",null,null,"ФАКТ",null,"ПЛАН",null,null,"ФАКТ",null,"ПЛАН",null,null,"ФАКТ",null,"ПЛАН",null,null,"ФАКТ",null,"ПЛАН",null,null,"ФАКТ",null,"ПЛАН",null,null,"ФАКТ",null,"ПЛАН",null,null,"ФАКТ",null,"ПЛАН"]
["Месяц","Вид ","Наименование медицинской организации","Оплачено случаев","Оплачено сумма, тыс.руб.","План ДВН, чел.","Отклонение","% выполнения",null,"1мес","январь","январь","2 мес",null,"Февраль",null,"Февраль","3 мес",null,"Март",null,"Март","4 мес",null,"Апрель",null,"Апрель","5 мес",null,"Май",null,"Май","6 мес",null,"Июнь",null,"Июнь","7 мес",null,"Июль",null,"Июль","8 мес",null,"Август",null,"Август","9 мес",null,"Сентябрь",null,"Сентябрь","10 мес",null,"Октябрь",null,"Октябрь","11 мес",null,"Ноябрь",null,"Ноябрь","12 мес",null,"Декабрь",null,"Декабрь"]
["Январь","ДВН","ЦМБ № 1",{"$f":"J4","v":954},{"$f":"K4","v":2086.8600500000002},{"$f":"L4","v":906},{"$f":"Таблица1[[#This Row],[Оплачено случаев]]-Таблица1[[#This Row],[План ДВН, чел.]]","v":48},{"$f":"ROUND(Таблица1[[#This Row],[Оплачено случаев]]/Таблица1[[#This Row],[План ДВН, чел.]]*100,1)","v":105.3},null,954,2086.8600500000002,906,{"$f":"J4+O4","v":2393},{"$f":"K4+P4","v":5141.4106499999998},1439,3054.5506,1125,{"$f":"M4+T4","v":3999},{"$f":"N4+U4","v":8684.5116200000011},1606,3543.1009700000004,1107,{"$f":"R4+Y4","v":3999},{"$f":"S4+Z4","v":8684.5116200000011},null,null,null,{"$f":"W4+AD4","v":3999},{"$f":"X4+AE4","v":8684.5116200000011},null,null,null,{"$f":"AB4+AI4","v":3999},{"$f":"AC4+AJ4","v":8684.5116200000011},null,null,null,{"$f":"AG4+AN4","v":3999},{"$f":"AH4+AO4","v":8684.5116200000011},null,null,null,{"$f":"AL4+AS4","v":3999},{"$f":"AM4+AT4","v":8684.5116200000011},null,null,null,{"$f":"AX4+AQ4","v":3999},{"$f":"AR4+AY4","v":8684.5116200000011},null,null,null,{"$f":"AV4+BC4","v":3999},{"$f":"AW4+BD4","v":8684.5116200000011},null,null,null,{"$f":"BH4+BA4","v":3999},{"$f":"BB4+BI4","v":8684.5116200000011},null,null,null,{"$f":"BF4+BM4","v":3999},{"$f":"BG4+BN4","v":8684.5116200000011},null,null,0]
["Январь","ДВН","ЦМБ № 2",{"$f":"J5","v":2438},{"$f":"K5","v":9013.7304800000002},{"$f":"L5","v":1838},{"$f":"Таблица1[[#This Row],[Оплачено случаев]]-Таблица1[[#This Row],[План ДВН, чел.]]","v":600},{"$f":"ROUND(Таблица1[[#This Row],[Оплачено случаев]]/Таблица1[[#This Row],[План ДВН, чел.]]*100,1)","v":132.6},null,2438,9013.7304800000002,1838,{"$f":"J5+O5","v":4644},16189.031640000001,2206,7175.30116,2071,{"$f":"M5+T5","v":6575},{"$f":"N5+U5","v":21314.6217},1931,5125.5900599999995,2065,{"$f":"R5+Y5","v":6575},{"$f":"S5+Z5","v":21314.6217},null,null,null,{"$f":"W5+AD5","v":6575},{"$f":"X5+AE5","v":21314.6217},null,null,null,{"$f":"AB5+AI5","v":6575},{"$f":"AC5+AJ5","v":21314.6217},null,null,null,{"$f":"AG5+AN5","v":6575},{"$f":"AH5+AO5","v":21314.6217},null,null,null,{"$f":"AL5+AS5","v":6575},{"$f":"AM5+AT5","v":21314.6217},null,null,null,{"$f":"AX5+AQ5","v":6575},{"$f":"AR5+AY5","v":21314.6217},null,null,null,{"$f":"AV5+BC5","v":6575},{"$f":"AW5+BD5","v":21314.6217},null,null,null,{"$f":"BH5+BA5","v":6575},{"$f":"BB5+BI5","v":21314.6217},null,null,null,{"$f":"BF5+BM5","v":6575},{"$f":"BG5+BN5","v":21314.6217},null,null,0]
["Январь","ДВН","ЦМБ № 3",840,1805.8473200000001,515,{"$f":"Таблица1[[#This Row],[Оплачено случаев]]-Таблица1[[#This Row],[План ДВН, чел.]]","v":325},{"$f":"ROUND(Таблица1[[#This Row],[Оплачено случаев]]/Таблица1[[#This Row],[План ДВН, чел.]]*100,1)","v":163.1},null,840,1805.8473200000001,515,1768,3780.8081400000001,928,1974.96082,515,2295,4877.5778,527,1096.7696599999999,852,2295,4877.5778,null,null,null,2295,4877.5778,null,null,null,2295,4877.5778,null,null,null,2295,4877.5778,null,null,null,2295,4877.5778,null,null,null,2295,4877.5778,null,null,null,2295,4877.5778,null,null,null,2295,4877.5778,null,null,null,2295,4877.5778,null,null,0]
["Январь","ДВН","ЦМБ № 4",279,503.08780000000002,279,{"$f":"Таблица1[[#This Row],[Оплачено случаев]]-Таблица1[[#This Row],[План ДВН, чел.]]","v":0},{"$f":"ROUND(Таблица1[[#This Row],[Оплачено случаев]]/Таблица1[[#This Row],[План ДВН, чел.]]*100,1)","v":100},null,279,503.08780000000002,279,598,1057.87663,319,554.78882999999996,383,923,1667.4341199999999,325,609.55749000000003,383,923,1667.4341199999999,null,null,null,923,1667.4341199999999,null,null,null,923,1667.4341199999999,null,null,null,923,1667.4341199999999,null,null,null,923,1667.4341199999999,null,null,null,923,1667.4341199999999,null,null,null,923,1667.4341199999999,null,null,null,923,1667.4341199999999,null,null,null,923,1667.4341199999999,null,null,0]
["Январь","ДВН","ЦМБ № 5",121,365.04376999999999,496,{"$f":"Таблица1[[#This Row],[Оплачено случаев]]-Таблица1[[#This Row],[План ДВН, чел.]]","v":-375},{"$f":"ROUND(Таблица1[[#This Row],[Оплачено случаев]]/Таблица1[[#This Row],[План ДВН, чел.]]*100,1)","v":24.4},null,121,365.04376999999999,496,1881,4967.0715500000006,1760,4602.0277800000003,946,3475,8669.5723200000011,1594,3702.5007700000001,973,3475,8669.5723200000011,null,null,null,3475,8669.5723200000011,null,null,null,3475,8669.5723200000011,null,null,null,3475,8669.5723200000011,null,null,null,3475,8669.5723200000011,null,null,null,3475,8669.5723200000011,null,null,null,3475,8669.5723200000011,null,null,null,3475,8669.5723200000011,null,null,null,3475,8669.5723200000011,null,null,0]
["Январь","ДВН","ЦМБ № 6",1497,3564.85419,1000,{"$f":"Таблица1[[#This Row],[Оплачено случаев]]-Таблица1[[#This Row],[План ДВН, чел.]]","v":497},{"$f":"ROUND(Таблица1[[#This Row],[Оплачено случаев]]/Таблица1[[#This Row],[План ДВН, чел.]]*100,1)","v":149.69999999999999},null,1497,3564.85419,1000,3557,8518.9756500000003,2060,4954.1214600000003,1250,5675,13518.174340000001,2118,4999.1986900000002,1500,5675,13518.174340000001,null,null,null,5675,13518.174340000001,null,null,null,5675,13518.174340000001,null,null,null,5675,13518.174340000001,null,null,null,5675,13518.174340000001,null,null,null,5675,13518.174340000001,null,null,null,5675,13518.174340000001,null,null,null,5675,13518.174340000001,null,null,null,5675,13518.174340000001,null,null,0]
["Январь","ДВН","КГБ № 5",3211,6391.2964499999998,2667,{"$f":"Таблица1[[#This Row],[Оплачено случаев]]-Таблица1[[#This Row],[План ДВН, чел.]]","v":544},{"$f":"ROUND(Таблица1[[#This Row],[Оплачено случаев]]/Таблица1[[#This Row],[План ДВН, чел.]]*100,1)","v":120.4},null,3211,6391.2964499999998,2667,7243,14252.88854,4032,7861.5920900000001,3900,11299,22350.30357,4056,8097.4150300000001,3900,11299,22350.30357,null,null,null,11299,22350.30357,null,null,null,11299,22350.30357,null,null,null,11299,22350.30357,null,null,null,11299,22350.30357,null,null,null,11299,22350.30357,null,null,null,11299,22350.30357,null,null,null,11299,22350.30357,null,null,null,11299,22350.30357,null,null,0]
["Январь","ДВН","КГКБ № 4",4933,8842.57438,3193,{"$f":"Таблица1[[#This Row],[Оплачено случаев]]-Таблица1[[#This Row],[План ДВН, чел.]]","v":1740},{"$f":"ROUND(Таблица1[[#This Row],[Оплачено случаев]]/Таблица1[[#This Row],[План ДВН, чел.]]*100,1)","v":154.5},null,4933,8842.57438,3193,9380,17554.983229999998,4447,8712.4088499999998,3193,13609,25795.129229999999,4229,8240.1460000000006,3193,13609,25795.129229999999,null,null,null,13609,25795.129229999999,null,null,null,13609,25795.129229999999,null,null,null,13609,25795.129229999999,null,null,null,13609,25795.129229999999,null,null,null,13609,25795.129229999999,null,null,null,13609,25795.129229999999,null,null,null,13609,25795.129229999999,null,null,null,13609,25795.129229999999,null,null,0]
["Январь","ДВН","Городская поликлиника",2037,2471.0031400000003,1449,{"$f":"Таблица1[[#This Row],[Оплачено случаев]]-Таблица1[[#This Row],[План ДВН, чел.]]","v":588},{"$f":"ROUND(Таблица1[[#This Row],[Оплачено случаев]]/Таблица1[[#This Row],[План ДВН, чел.]]*100,1)","v":140.6},null,2037,2471.0031400000003,1449,4626,6294.7361500000006,2589,3823.7330099999999,1506,6765,9704.8025100000013,2139,3410.0663599999998,1506,6765,9704.8025100000013,null,null,null,6765,9704.8025100000013,null,null,null,6765,9704.8025100000013,null,null,null,6765,9704.8025100000013,null,null,null,6765,9704.8025100000013,null,null,null,6765,9704.8025100000013,null,null,null,6765,9704.8025100000013,null,null,null,6765,9704.8025100000013,null,null,null,6765,9704.8025100000013,null,null,0]
["Январь","ДВН","МСЧ № 1 г. Калуги",102,201.66631000000001,120,{"$f":"Таблица1[[#This Row],[Оплачено случаев]]-Таблица1[[#This Row],[План ДВН, чел.]]","v":-18},{"$f":"ROUND(Таблица1[[#This Row],[Оплачено случаев]]/Таблица1[[#This Row],[План ДВН, чел.]]*100,1)","v":85},null,102,201.66631000000001,120,360,719.43678999999997,258,517.77048000000002,200,756,1601.5605799999998,396,882.12378999999999,200,756,1601.5605799999998,null,null,null,756,1601.5605799999998,null,null,null,756,1601.5605799999998,null,null,null,756,1601.5605799999998,null,null,null,756,1601.5605799999998,null,null,null,756,1601.5605799999998,null,null,null,756,1601.5605799999998,null,null,null,756,1601.5605799999998,null,null,null,756,1601.5605799999998,null,null,0]
["Январь","ДВН","МСЧ № 2 г. Калуги",25,30.765650000000001,25,{"$f":"Таблица1[[#This Row],[Оплачено случаев]]-Таблица1[[#This Row],[План ДВН, чел.]]","v":0},{"$f":"ROUND(Таблица1[[#This Row],[Оплачено случаев]]/Таблица1[[#This Row],[План ДВН, чел.]]*100,1)","v":100},null,25,30.765650000000001,25,45,60.929290000000002,20,30.163640000000001,12,102,155.99223000000001,57,95.062939999999998,12,102,155.99223000000001,null,null,null,102,155.99223000000001,null,null,null,102,155.99223000000001,null,null,null,102,155.99223000000001,null,null,null,102,155.99223000000001,null,null,null,102,155.99223000000001,null,null,null,102,155.99223000000001,null,null,null,102,155.99223000000001,null,null,null,102,155.99223000000001,null,null,0]
["Январь","ДВН","МСЧ МВД",0,0,0,{"$f":"Таблица1[[#This Row],[Оплачено случаев]]-Таблица1[[#This Row],[План ДВН, чел.]]","v":0},{"$f":"ROUND(Таблица1[[#This Row],[Оплачено случаев]]/Таблица1[[#This Row],[План ДВН, чел.]]*100,1)","v":{"$error":"#DIV/0!"}},null,0,0,null,0,0,null,0,null,0,0,null,0,null,0,0,null,null,null,0,0,null,null,null,0,0,null,null,null,0,0,null,null,null,0,0,null,null,null,0,0,null,null,null,0,0,null,null,null,0,0,null,null,null,0,0,null,null,0]
["Январь","ДВН","ЧУЗ \"Больница \"РЖД - Медицина\" ",181,388.774,176,{"$f":"Таблица1[[#This Row],[Оплачено случаев]]-Таблица1[[#This Row],[План ДВН, чел.]]","v":5},{"$f":"ROUND(Таблица1[[#This Row],[Оплачено случаев]]/Таблица1[[#This Row],[План ДВН, чел.]]*100,1)","v":102.8},null,181,388.774,176,471,1025.0539699999999,290,636.27996999999993,195,727,1588.4870599999999,256,563.43308999999999,195,727,1588.4870599999999,null,null,null,727,1588.4870599999999,null,null,null,727,1588.4870599999999,null,null,null,727,1588.4870599999999,null,null,null,727,1588.4870599999999,null,null,null,727,1588.4870599999999,null,null,null,727,1588.4870599999999,null,null,null,727,1588.4870599999999,null,null,null,727,1588.4870599999999,null,null,0]
["Январь","ДВН","КБ № 8 ФМБА",2827,6250.9756699999998,2100,{"$f":"Таблица1[[#This Row],[Оплачено случаев]]-Таблица1[[#This Row],[План ДВН, чел.]]","v":727},{"$f":"ROUND(Таблица1[[#This Row],[Оплачено случаев]]/Таблица1[[#This Row],[План ДВН, чел.]]*100,1)","v":134.6},null,2827,6250.9756699999998,2100,8051,17991.07648,5224,11740.10081,3474,12636,28262.434130000001,4585,10271.35765,4500,12636,28262.434130000001,null,null,null,12636,28262.434130000001,null,null,null,12636,28262.434130000001,null,null,null,12636,28262.434130000001,null,null,null,12636,28262.434130000001,null,null,null,12636,28262.434130000001,null,null,null,12636,28262.434130000001,null,null,null,12636,28262.434130000001,null,null,null,12636,28262.434130000001,null,null,0]
["Январь","ДВН","ЦРБ Бабынинского района",355,747.80538999999999,263,{"$f":"Таблица1[[#This Row],[Оплачено случаев]]-Таблица1[[#This Row],[План ДВН, чел.]]","v":92},{"$f":"ROUND(Таблица1[[#This Row],[Оплачено случаев]]/Таблица1[[#This Row],[План ДВН, чел.]]*100,1)","v":135},null,355,747.80538999999999,263,886,1826.41887,531,1078.61348,464,1496,3065.86301,610,1239.4441399999998,464,1496,3065.86301,null,null,null,1496,3065.86301,null,null,null,1496,3065.86301,null,null,null,1496,3065.86301,null,null,null,1496,3065.86301,null,null,null,1496,3065.86301,null,null,null,1496,3065.86301,null,null,null,1496,3065.86301,null,null,null,1496,3065.86301,null,null,0]
["Январь","ДВН","ЦРБ Боровского района",1850,5471.5071399999997,1280,{"$f":"Таблица1[[#This Row],[Оплачено случаев]]-Таблица1[[#This Row],[План ДВН, чел.]]","v":570},{"$f":"ROUND(Таблица1[[#This Row],[Оплачено случаев]]/Таблица1[[#This Row],[План ДВН, чел.]]*100,1)","v":144.5},null,1850,5471.5071399999997,1280,3984,11718.92124,2134,6247.4141,1280,6034,17240.228309999999,2050,5521.3070700000007,1280,6034,17240.228309999999,null,null,null,6034,17240.228309999999,null,null,null,6034,17240.228309999999,null,null,null,6034,17240.228309999999,null,null,null,6034,17240.228309999999,null,null,null,6034,17240.228309999999,null,null,null,6034,17240.228309999999,null,null,null,6034,17240.228309999999,null,null,null,6034,17240.228309999999,null,null,0]
["Январь","ДВН","ЦРБ Жуковского района",385,1005.8696199999999,350,{"$f":"Таблица1[[#This Row],[Оплачено случаев]]-Таблица1[[#This Row],[План ДВН, чел.]]","v":35},{"$f":"ROUND(Таблица1[[#This Row],[Оплачено случаев]]/Таблица1[[#This Row],[План ДВН, чел.]]*100,1)","v":110},null,385,1005.8696199999999,350,719,1880.2107599999999,334,874.34114,450,1382,3486.8927100000001,663,1606.6819499999999,490,1382,3486.8927100000001,null,null,null,1382,3486.8927100000001,null,null,null,1382,3486.8927100000001,null,null,null,1382,3486.8927100000001,null,null,null,1382,3486.8927100000001,null,null,null,1382,3486.8927100000001,null,null,null,1382,3486.8927100000001,null,null,null,1382,3486.8927100000001,null,null,null,1382,3486.8927100000001,null,null,0]
["Январь","ДВН","ГП \"Город Кременки\"",143,274.63223999999997,208,{"$f":"Таблица1[[#This Row],[Оплачено случаев]]-Таблица1[[#This Row],[План ДВН, чел.]]","v":-65},{"$f":"ROUND(Таблица1[[#This Row],[Оплачено случаев]]/Таблица1[[#This Row],[План ДВН, чел.]]*100,1)","v":68.8},null,143,274.63223999999997,208,350,658.35434999999995,207,383.72210999999999,230,563,1053.7544499999999,213,395.40009999999995,280,563,1053.7544499999999,null,null,null,563,1053.7544499999999,null,null,null,563,1053.7544499999999,null,null,null,563,1053.7544499999999,null,null,null,563,1053.7544499999999,null,null,null,563,1053.7544499999999,null,null,null,563,1053.7544499999999,null,null,null,563,1053.7544499999999,null,null,null,563,1053.7544499999999,null,null,0]
["Январь","ДВН","ЦРБ Малоярославецкого района",1258,2814.9879500000002,964,{"$f":"Таблица1[[#This Row],[Оплачено случаев]]-Таблица1[[#This Row],[План ДВН, чел.]]","v":294},{"$f":"ROUND(Таблица1[[#This Row],[Оплачено случаев]]/Таблица1[[#This Row],[План ДВН, чел.]]*100,1)","v":130.5},null,1258,2814.9879500000002,964,2448,5279.6316100000004,1190,2464.6436600000002,964,3492,7407.1408100000008,1044,2127.5092,964,3492,7407.1408100000008,null,null,null,3492,7407.1408100000008,null,null,null,3492,7407.1408100000008,null,null,null,3492,7407.1408100000008,null,null,null,3492,7407.1408100000008,null,null,null,3492,7407.1408100000008,null,null,null,3492,7407.1408100000008,null,null,null,3492,7407.1408100000008,null,null,null,3492,7407.1408100000008,null,null,0]
["Январь","ДВН","ЦРБ  Тарусского района",118,226.10288,98,{"$f":"Таблица1[[#This Row],[Оплачено случаев]]-Таблица1[[#This Row],[План ДВН, чел.]]","v":20},{"$f":"ROUND(Таблица1[[#This Row],[Оплачено случаев]]/Таблица1[[#This Row],[План ДВН, чел.]]*100,1)","v":120.4},null,118,226.10288,98,253,489.30398000000002,135,263.2011,250,631,1231.0953500000001,378,741.79137000000003,362,631,1231.0953500000001,null,null,null,631,1231.0953500000001,null,null,null,631,1231.0953500000001,null,null,null,631,1231.0953500000001,null,null,null,631,1231.0953500000001,null,null,null,631,1231.0953500000001,null,null,null,631,1231.0953500000001,null,null,null,631,1231.0953500000001,null,null,null,631,1231.0953500000001,null,null,0]
["Февраль","ДВН","ЦМБ № 1",{"$f":"O4","v":1439},{"$f":"P4","v":3054.5506},{"$f":"Q4","v":1125},{"$f":"Таблица1[[#This Row],[Оплачено случаев]]-Таблица1[[#This Row],[План ДВН, чел.]]","v":314},{"$f":"ROUND(Таблица1[[#This Row],[Оплачено случаев]]/Таблица1[[#This Row],[План ДВН, чел.]]*100,1)","v":127.9},null,{"$f":"SUM(J4:J23)","v":23554},52457.384429999998,17927,53657,119407.11951999998,30103,66949.735090000002,22408,82434,181675.57585000005,28777,62268.456329999994,24226,82434,181675.57585000005,0,0,0,82434,181675.57585000005,0,0,0,82434,181675.57585000005,0,0,0,82434,181675.57585000005,0,0,{"$f":"SUM(AP4:AP23)","v":0},{"$f":"SUM(AQ4:AQ23)","v":82434},181675.57585000005,0,0,0,82434,181675.57585000005,null,null,null,82434,181675.57585000005,0,0,0,82434,181675.57585000005,0,0,0,82434,181675.57585000005,0,0,0]
["Февраль","ДВН","ЦМБ № 2",2206,7175.30116,2071,{"$f":"Таблица1[[#This Row],[Оплачено случаев]]-Таблица1[[#This Row],[План ДВН, чел.]]","v":135},{"$f":"ROUND(Таблица1[[#This Row],[Оплачено случаев]]/Таблица1[[#This Row],[План ДВН, чел.]]*100,1)","v":106.5}]
["Февраль","ДВН","ЦМБ № 3",928,1974.96082,515,{"$f":"Таблица1[[#This Row],[Оплачено случаев]]-Таблица1[[#This Row],[План ДВН, чел.]]","v":413},{"$f":"ROUND(Таблица1[[#This Row],[Оплачено случаев]]/Таблица1[[#This Row],[План ДВН, чел.]]*100,1)","v":180.2}]
["Февраль","ДВН","ЦМБ № 4",319,554.78882999999996,383,{"$f":"Таблица1[[#This Row],[Оплачено случаев]]-Таблица1[[#This Row],[План ДВН, чел.]]","v":-64},{"$f":"ROUND(Таблица1[[#This Row],[Оплачено случаев]]/Таблица1[[#This Row],[План ДВН, чел.]]*100,1)","v":83.3}]
["Февраль","ДВН","ЦМБ № 5",1760,4602.0277800000003,946,{"$f":"Таблица1[[#This Row],[Оплачено случаев]]-Таблица1[[#This Row],[План ДВН, чел.]]","v":814},{"$f":"ROUND(Таблица1[[#This Row],[Оплачено случаев]]/Таблица1[[#This Row],[План ДВН, чел.]]*100,1)","v":186}]
["Февраль","ДВН","ЦМБ № 6",2060,4954.1214600000003,1250,{"$f":"Таблица1[[#This Row],[Оплачено случаев]]-Таблица1[[#This Row],[План ДВН, чел.]]","v":810},{"$f":"ROUND(Таблица1[[#This Row],[Оплачено случаев]]/Таблица1[[#This Row],[План ДВН, чел.]]*100,1)","v":164.8}]
["Февраль","ДВН","КГБ № 5",4032,7861.5920900000001,3900,{"$f":"Таблица1[[#This Row],[Оплачено случаев]]-Таблица1[[#This Row],[План ДВН, чел.]]","v":132},{"$f":"ROUND(Таблица1[[#This Row],[Оплачено случаев]]/Таблица1[[#This Row],[План ДВН, чел.]]*100,1)","v":103.4}]
["Февраль","ДВН","КГКБ № 4",4447,8712.4088499999998,3193,{"$f":"Таблица1[[#This Row],[Оплачено случаев]]-Таблица1[[#This Row],[План ДВН, чел.]]","v":1254},{"$f":"ROUND(Таблица1[[#This Row],[Оплачено случаев]]/Таблица1[[#This Row],[План ДВН, чел.]]*100,1)","v":139.30000000000001}]
["Февраль","ДВН","Городская поликлиника",2589,3823.7330099999999,1506,{"$f":"Таблица1[[#This Row],[Оплачено случаев]]-Таблица1[[#This Row],[План ДВН, чел.]]","v":1083},{"$f":"ROUND(Таблица1[[#This Row],[Оплачено случаев]]/Таблица1[[#This Row],[План ДВН, чел.]]*100,1)","v":171.9}]
["Февраль","ДВН","МСЧ № 1 г. Калуги",258,517.77048000000002,200,{"$f":"Таблица1[[#This Row],[Оплачено случаев]]-Таблица1[[#This Row],[План ДВН, чел.]]","v":58},{"$f":"ROUND(Таблица1[[#This Row],[Оплачено случаев]]/Таблица1[[#This Row],[План ДВН, чел.]]*100,1)","v":129}]
["Февраль","ДВН","МСЧ № 2 г. Калуги",20,30.163640000000001,12,{"$f":"Таблица1[[#This Row],[Оплачено случаев]]-Таблица1[[#This Row],[План ДВН, чел.]]","v":8},{"$f":"ROUND(Таблица1[[#This Row],[Оплачено случаев]]/Таблица1[[#This Row],[План ДВН, чел.]]*100,1)","v":166.7}]
["Февраль","ДВН","МСЧ МВД",0,0,0,{"$f":"Таблица1[[#This Row],[Оплачено случаев]]-Таблица1[[#This Row],[План ДВН, чел.]]","v":0},{"$f":"ROUND(Таблица1[[#This Row],[Оплачено случаев]]/Таблица1[[#This Row],[План ДВН, чел.]]*100,1)","v":{"$error":"#DIV/0!"}}]
["Февраль","ДВН","ЧУЗ \"Больница \"РЖД - Медицина\" ",290,636.27996999999993,195,{"$f":"Таблица1[[#This Row],[Оплачено случаев]]-Таблица1[[#This Row],[План ДВН, чел.]]","v":95},{"$f":"ROUND(Таблица1[[#This Row],[Оплачено случаев]]/Таблица1[[#This Row],[План ДВН, чел.]]*100,1)","v":148.69999999999999}]
["Февраль","ДВН","КБ № 8 ФМБА",5224,11740.10081,3474,{"$f":"Таблица1[[#This Row],[Оплачено случаев]]-Таблица1[[#This Row],[План ДВН, чел.]]","v":1750},{"$f":"ROUND(Таблица1[[#This Row],[Оплачено случаев]]/Таблица1[[#This Row],[План ДВН, чел.]]*100,1)","v":150.4}]
["Февраль","ДВН","ЦРБ Бабынинского района",531,1078.61348,464,{"$f":"Таблица1[[#This Row],[Оплачено случаев]]-Таблица1[[#This Row],[План ДВН, чел.]]","v":67},{"$f":"ROUND(Таблица1[[#This Row],[Оплачено случаев]]/Таблица1[[#This Row],[План ДВН, чел.]]*100,1)","v":114.4}]
["Февраль","ДВН","ЦРБ Боровского района",2134,6247.4141,1280,{"$f":"Таблица1[[#This Row],[Оплачено случаев]]-Таблица1[[#This Row],[План ДВН, чел.]]","v":854},{"$f":"ROUND(Таблица1[[#This Row],[Оплачено случаев]]/Таблица1[[#This Row],[План ДВН, чел.]]*100,1)","v":166.7}]
["Февраль","ДВН","ЦРБ Жуковского района",334,874.34114,450,{"$f":"Таблица1[[#This Row],[Оплачено случаев]]-Таблица1[[#This Row],[План ДВН, чел.]]","v":-116},{"$f":"ROUND(Таблица1[[#This Row],[Оплачено случаев]]/Таблица1[[#This Row],[План ДВН, чел.]]*100,1)","v":74.2}]
["Февраль","ДВН","ГП \"Город Кременки\"",207,383.72210999999999,230,{"$f":"Таблица1[[#This Row],[Оплачено случаев]]-Таблица1[[#This Row],[План ДВН, чел.]]","v":-23},{"$f":"ROUND(Таблица1[[#This Row],[Оплачено случаев]]/Таблица1[[#This Row],[План ДВН, чел.]]*100,1)","v":90}]
["Февраль","ДВН","ЦРБ Малоярославецкого района",1190,2464.6436600000002,964,{"$f":"Таблица1[[#This Row],[Оплачено случаев]]-Таблица1[[#This Row],[План ДВН, чел.]]","v":226},{"$f":"ROUND(Таблица1[[#This Row],[Оплачено случаев]]/Таблица1[[#This Row],[План ДВН, чел.]]*100,1)","v":123.4}]
["Февраль","ДВН","ЦРБ  Тарусского района",135,263.2011,250,{"$f":"Таблица1[[#This Row],[Оплачено случаев]]-Таблица1[[#This Row],[План ДВН, чел.]]","v":-115},{"$f":"ROUND(Таблица1[[#This Row],[Оплачено случаев]]/Таблица1[[#This Row],[План ДВН, чел.]]*100,1)","v":54}]
["Март","ДВН","ЦМБ № 1",{"$f":"T4","v":1606},{"$f":"U4","v":3543.1009700000004},{"$f":"V4","v":1107},{"$f":"Таблица1[[#This Row],[Оплачено случаев]]-Таблица1[[#This Row],[План ДВН, чел.]]","v":499},{"$f":"ROUND(Таблица1[[#This Row],[Оплачено случаев]]/Таблица1[[#This Row],[План ДВН, чел.]]*100,1)","v":145.1}]
["Март","ДВН","ЦМБ № 2",1931,5125.5900599999995,2065,{"$f":"Таблица1[[#This Row],[Оплачено случаев]]-Таблица1[[#This Row],[План ДВН, чел.]]","v":-134},{"$f":"ROUND(Таблица1[[#This Row],[Оплачено случаев]]/Таблица1[[#This Row],[План ДВН, чел.]]*100,1)","v":93.5}]
["Март","ДВН","ЦМБ № 3",527,1096.7696599999999,852,{"$f":"Таблица1[[#This Row],[Оплачено случаев]]-Таблица1[[#This Row],[План ДВН, чел.]]","v":-325},{"$f":"ROUND(Таблица1[[#This Row],[Оплачено случаев]]/Таблица1[[#This Row],[План ДВН, чел.]]*100,1)","v":61.9}]
["Март","ДВН","ЦМБ № 4",325,609.55749000000003,383,{"$f":"Таблица1[[#This Row],[Оплачено случаев]]-Таблица1[[#This Row],[План ДВН, чел.]]","v":-58},{"$f":"ROUND(Таблица1[[#This Row],[Оплачено случаев]]/Таблица1[[#This Row],[План ДВН, чел.]]*100,1)","v":84.9}]
["Март","ДВН","ЦМБ № 5",1594,3702.5007700000001,973,{"$f":"Таблица1[[#This Row],[Оплачено случаев]]-Таблица1[[#This Row],[План ДВН, чел.]]","v":621},{"$f":"ROUND(Таблица1[[#This Row],[Оплачено случаев]]/Таблица1[[#This Row],[План ДВН, чел.]]*100,1)","v":163.80000000000001}]
["Март","ДВН","ЦМБ № 6",2118,4999.1986900000002,1500,{"$f":"Таблица1[[#This Row],[Оплачено случаев]]-Таблица1[[#This Row],[План ДВН, чел.]]","v":618},{"$f":"ROUND(Таблица1[[#This Row],[Оплачено случаев]]/Таблица1[[#This Row],[План ДВН, чел.]]*100,1)","v":141.19999999999999}]
["Март","ДВН","КГБ № 5",4056,8097.4150300000001,3900,{"$f":"Таблица1[[#This Row],[Оплачено случаев]]-Таблица1[[#This Row],[План ДВН, чел.]]","v":156},{"$f":"ROUND(Таблица1[[#This Row],[Оплачено случаев]]/Таблица1[[#This Row],[План ДВН, чел.]]*100,1)","v":104}]
["Март","ДВН","КГКБ № 4",4229,8240.1460000000006,3193,{"$f":"Таблица1[[#This Row],[Оплачено случаев]]-Таблица1[[#This Row],[План ДВН, чел.]]","v":1036},{"$f":"ROUND(Таблица1[[#This Row],[Оплачено случаев]]/Таблица1[[#This Row],[План ДВН, чел.]]*100,1)","v":132.4}]
["Март","ДВН","Городская поликлиника",2139,3410.0663599999998,1506,{"$f":"Таблица1[[#This Row],[Оплачено случаев]]-Таблица1[[#This Row],[План ДВН, чел.]]","v":633},{"$f":"ROUND(Таблица1[[#This Row],[Оплачено случаев]]/Таблица1[[#This Row],[План ДВН, чел.]]*100,1)","v":142}]
["Март","ДВН","МСЧ № 1 г. Калуги",396,882.12378999999999,200,{"$f":"Таблица1[[#This Row],[Оплачено случаев]]-Таблица1[[#This Row],[План ДВН, чел.]]","v":196},{"$f":"ROUND(Таблица1[[#This Row],[Оплачено случаев]]/Таблица1[[#This Row],[План ДВН, чел.]]*100,1)","v":198}]
["Март","ДВН","МСЧ № 2 г. Калуги",57,95.062939999999998,12,{"$f":"Таблица1[[#This Row],[Оплачено случаев]]-Таблица1[[#This Row],[План ДВН, чел.]]","v":45},{"$f":"ROUND(Таблица1[[#This Row],[Оплачено случаев]]/Таблица1[[#This Row],[План ДВН, чел.]]*100,1)","v":475}]
["Март","ДВН","МСЧ МВД",0,0,0,{"$f":"Таблица1[[#This Row],[Оплачено случаев]]-Таблица1[[#This Row],[План ДВН, чел.]]","v":0},{"$f":"ROUND(Таблица1[[#This Row],[Оплачено случаев]]/Таблица1[[#This Row],[План ДВН, чел.]]*100,1)","v":{"$error":"#DIV/0!"}}]
["Март","ДВН","ЧУЗ \"Больница \"РЖД - Медицина\" ",256,563.43308999999999,195,{"$f":"Таблица1[[#This Row],[Оплачено случаев]]-Таблица1[[#This Row],[План ДВН, чел.]]","v":61},{"$f":"ROUND(Таблица1[[#This Row],[Оплачено случаев]]/Таблица1[[#This Row],[План ДВН, чел.]]*100,1)","v":131.30000000000001}]
["Март","ДВН","КБ № 8 ФМБА",4585,10271.35765,4500,{"$f":"Таблица1[[#This Row],[Оплачено случаев]]-Таблица1[[#This Row],[План ДВН, чел.]]","v":85},{"$f":"ROUND(Таблица1[[#This Row],[Оплачено случаев]]/Таблица1[[#This Row],[План ДВН, чел.]]*100,1)","v":101.9}]
["Март","ДВН","ЦРБ Бабынинского района",610,1239.4441399999998,464,{"$f":"Таблица1[[#This Row],[Оплачено случаев]]-Таблица1[[#This Row],[План ДВН, чел.]]","v":146},{"$f":"ROUND(Таблица1[[#This Row],[Оплачено случаев]]/Таблица1[[#This Row],[План ДВН, чел.]]*100,1)","v":131.5}]
["Март","ДВН","ЦРБ Боровского района",2050,5521.3070700000007,1280,{"$f":"Таблица1[[#This Row],[Оплачено случаев]]-Таблица1[[#This Row],[План ДВН, чел.]]","v":770},{"$f":"ROUND(Таблица1[[#This Row],[Оплачено случаев]]/Таблица1[[#This Row],[План ДВН, чел.]]*100,1)","v":160.19999999999999}]
["Март","ДВН","ЦРБ Жуковского района",663,1606.6819499999999,490,{"$f":"Таблица1[[#This Row],[Оплачено случаев]]-Таблица1[[#This Row],[План ДВН, чел.]]","v":173},{"$f":"ROUND(Таблица1[[#This Row],[Оплачено случаев]]/Таблица1[[#This Row],[План ДВН, чел.]]*100,1)","v":135.30000000000001}]
["Март","ДВН","ГП \"Город Кременки\"",213,395.40009999999995,280,{"$f":"Таблица1[[#This Row],[Оплачено случаев]]-Таблица1[[#This Row],[План ДВН, чел.]]","v":-67},{"$f":"ROUND(Таблица1[[#This Row],[Оплачено случаев]]/Таблица1[[#This Row],[План ДВН, чел.]]*100,1)","v":76.099999999999994}]
["Март","ДВН","ЦРБ Малоярославецкого района",1044,2127.5092,964,{"$f":"Таблица1[[#This Row],[Оплачено случаев]]-Таблица1[[#This Row],[План ДВН, чел.]]","v":80},{"$f":"ROUND(Таблица1[[#This Row],[Оплачено случаев]]/Таблица1[[#This Row],[План ДВН, чел.]]*100,1)","v":108.3}]
["Март","ДВН","ЦРБ  Тарусского района",378,741.79137000000003,362,{"$f":"Таблица1[[#This Row],[Оплачено случаев]]-Таблица1[[#This Row],[План ДВН, чел.]]","v":16},{"$f":"ROUND(Таблица1[[#This Row],[Оплачено случаев]]/Таблица1[[#This Row],[План ДВН, чел.]]*100,1)","v":104.4}]
["Апрель","ДВН","ЦМБ № 1",{"$f":"Y4","v":0},{"$f":"Z4","v":0},{"$f":"AA4","v":0},{"$f":"Таблица1[[#This Row],[Оплачено случаев]]-Таблица1[[#This Row],[План ДВН, чел.]]","v":0},{"$f":"ROUND(Таблица1[[#This Row],[Оплачено случаев]]/Таблица1[[#This Row],[План ДВН, чел.]]*100,1)","v":{"$error":"#DIV/0!"}}]
["Апрель","ДВН","ЦМБ № 2",0,0,0,{"$f":"Таблица1[[#This Row],[Оплачено случаев]]-Таблица1[[#This Row],[План ДВН, чел.]]","v":0},{"$f":"ROUND(Таблица1[[#This Row],[Оплачено случаев]]/Таблица1[[#This Row],[План ДВН, чел.]]*100,1)","v":{"$error":"#DIV/0!"}}]
["Апрель","ДВН","ЦМБ № 3",0,0,0,{"$f":"Таблица1[[#This Row],[Оплачено случаев]]-Таблица1[[#This Row],[План ДВН, чел.]]","v":0},{"$f":"ROUND(Таблица1[[#This Row],[Оплачено случаев]]/Таблица1[[#This Row],[План ДВН, чел.]]*100,1)","v":{"$error":"#DIV/0!"}}]
["Апрель","ДВН","ЦМБ № 4",0,0,0,{"$f":"Таблица1[[#This Row],[Оплачено случаев]]-Таблица1[[#This Row],[План ДВН, чел.]]","v":0},{"$f":"ROUND(Таблица1[[#This Row],[Оплачено случаев]]/Таблица1[[#This Row],[План ДВН, чел.]]*100,1)","v":{"$error":"#DIV/0!"}}]
["Апрель","ДВН","ЦМБ № 5",0,0,0,{"$f":"Таблица1[[#This Row],[Оплачено случаев]]-Таблица1[[#This Row],[План ДВН, чел.]]","v":0},{"$f":"ROUND(Таблица1[[#This Row],[Оплачено случаев]]/Таблица1[[#This Row],[План ДВН, чел.]]*100,1)","v":{"$error":"#DIV/0!"}}]
["Апрель","ДВН","ЦМБ № 6",0,0,0,{"$f":"Таблица1[[#This Row],[Оплачено случаев]]-Таблица1[[#This Row],[План ДВН, чел.]]","v":0},{"$f":"ROUND(Таблица1[[#This Row],[Оплачено случаев]]/Таблица1[[#This Row],[План ДВН, чел.]]*100,1)","v":{"$error":"#DIV/0!"}}]
["Апрель","ДВН","КГБ № 5",0,0,0,{"$f":"Таблица1[[#This Row],[Оплачено случаев]]-Таблица1[[#This Row],[План ДВН, чел.]]","v":0},{"$f":"ROUND(Таблица1[[#This Row],[Оплачено случаев]]/Таблица1[[#This Row],[План ДВН, чел.]]*100,1)","v":{"$error":"#DIV/0!"}}]
["Апрель","ДВН","КГКБ № 4",0,0,0,{"$f":"Таблица1[[#This Row],[Оплачено случаев]]-Таблица1[[#This Row],[План ДВН, чел.]]","v":0},{"$f":"ROUND(Таблица1[[#This Row],[Оплачено случаев]]/Таблица1[[#This Row],[План ДВН, чел.]]*100,1)","v":{"$error":"#DIV/0!"}}]
["Апрель","ДВН","Городская поликлиника",0,0,0,{"$f":"Таблица1[[#This Row],[Оплачено случаев]]-Таблица1[[#This Row],[План ДВН, чел.]]","v":0},{"$f":"ROUND(Таблица1[[#This Row],[Оплачено случаев]]/Таблица1[[#This Row],[План ДВН, чел.]]*100,1)","v":{"$error":"#DIV/0!"}}]
["Апрель","ДВН","МСЧ № 1 г. Калуги",0,0,0,{"$f":"Таблица1[[#This Row],[Оплачено случаев]]-Таблица1[[#This Row],[План ДВН, чел.]]","v":0},{"$f":"ROUND(Таблица1[[#This Row],[Оплачено случаев]]/Таблица1[[#This Row],[План ДВН, чел.]]*100,1)","v":{"$error":"#DIV/0!"}}]
["Апрель","ДВН","МСЧ № 2 г. Калуги",0,0,0,{"$f":"Таблица1[[#This Row],[Оплачено случаев]]-Таблица1[[#This Row],[План ДВН, чел.]]","v":0},{"$f":"ROUND(Таблица1[[#This Row],[Оплачено случаев]]/Таблица1[[#This Row],[План ДВН, чел.]]*100,1)","v":{"$error":"#DIV/0!"}}]
["Апрель","ДВН","МСЧ МВД",0,0,0,{"$f":"Таблица1[[#This Row],[Оплачено случаев]]-Таблица1[[#This Row],[План ДВН, чел.]]","v":0},{"$f":"ROUND(Таблица1[[#This Row],[Оплачено случаев]]/Таблица1[[#This Row],[План ДВН, чел.]]*100,1)","v":{"$error":"#DIV/0!"}}]
["Апрель","ДВН","ЧУЗ \"Больница \"РЖД - Медицина\" ",0,0,0,{"$f":"Таблица1[[#This Row],[Оплачено случаев]]-Таблица1[[#This Row],[План ДВН, чел.]]","v":0},{"$f":"ROUND(Таблица1[[#This Row],[Оплачено случаев]]/Таблица1[[#This Row],[План ДВН, чел.]]*100,1)","v":{"$error":"#DIV/0!"}}]
["Апрель","ДВН","КБ № 8 ФМБА",0,0,0,{"$f":"Таблица1[[#This Row],[Оплачено случаев]]-Таблица1[[#This Row],[План ДВН, чел.]]","v":0},{"$f":"ROUND(Таблица1[[#This Row],[Оплачено случаев]]/Таблица1[[#This Row],[План ДВН, чел.]]*100,1)","v":{"$error":"#DIV/0!"}}]
["Апрель","ДВН","ЦРБ Бабынинского района",0,0,0,{"$f":"Таблица1[[#This Row],[Оплачено случаев]]-Таблица1[[#This Row],[План ДВН, чел.]]","v":0},{"$f":"ROUND(Таблица1[[#This Row],[Оплачено случаев]]/Таблица1[[#This Row],[План ДВН, чел.]]*100,1)","v":{"$error":"#DIV/0!"}}]
["Апрель","ДВН","ЦРБ Боровского района",0,0,0,{"$f":"Таблица1[[#This Row],[Оплачено случаев]]-Таблица1[[#This Row],[План ДВН, чел.]]","v":0},{"$f":"ROUND(Таблица1[[#This Row],[Оплачено случаев]]/Таблица1[[#This Row],[План ДВН, чел.]]*100,1)","v":{"$error":"#DIV/0!"}}]
["Апрель","ДВН","ЦРБ Жуковского района",0,0,0,{"$f":"Таблица1[[#This Row],[Оплачено случаев]]-Таблица1[[#This Row],[План ДВН, чел.]]","v":0},{"$f":"ROUND(Таблица1[[#This Row],[Оплачено случаев]]/Таблица1[[#This Row],[План ДВН, чел.]]*100,1)","v":{"$error":"#DIV/0!"}}]
["Апрель","ДВН","ГП \"Город Кременки\"",0,0,0,{"$f":"Таблица1[[#This Row],[Оплачено случаев]]-Таблица1[[#This Row],[План ДВН, чел.]]","v":0},{"$f":"ROUND(Таблица1[[#This Row],[Оплачено случаев]]/Таблица1[[#This Row],[План ДВН, чел.]]*100,1)","v":{"$error":"#DIV/0!"}}]
["Апрель","ДВН","ЦРБ Малоярославецкого района",0,0,0,{"$f":"Таблица1[[#This Row],[Оплачено случаев]]-Таблица1[[#This Row],[План ДВН, чел.]]","v":0},{"$f":"ROUND(Таблица1[[#This Row],[Оплачено случаев]]/Таблица1[[#This Row],[План ДВН, чел.]]*100,1)","v":{"$error":"#DIV/0!"}}]
["Апрель","ДВН","ЦРБ  Тарусского района",0,0,0,{"$f":"Таблица1[[#This Row],[Оплачено случаев]]-Таблица1[[#This Row],[План ДВН, чел.]]","v":0},{"$f":"ROUND(Таблица1[[#This Row],[Оплачено случаев]]/Таблица1[[#This Row],[План ДВН, чел.]]*100,1)","v":{"$error":"#DIV/0!"}}]
["Май","ДВН","ЦМБ № 1",{"$f":"AD4","v":0},{"$f":"AE4","v":0},{"$f":"AF4","v":0},{"$f":"Таблица1[[#This Row],[Оплачено случаев]]-Таблица1[[#This Row],[План ДВН, чел.]]","v":0},{"$f":"ROUND(Таблица1[[#This Row],[Оплачено случаев]]/Таблица1[[#This Row],[План ДВН, чел.]]*100,1)","v":{"$error":"#DIV/0!"}}]
["Май","ДВН","ЦМБ № 2",0,0,0,{"$f":"Таблица1[[#This Row],[Оплачено случаев]]-Таблица1[[#This Row],[План ДВН, чел.]]","v":0},{"$f":"ROUND(Таблица1[[#This Row],[Оплачено случаев]]/Таблица1[[#This Row],[План ДВН, чел.]]*100,1)","v":{"$error":"#DIV/0!"}}]
["Май","ДВН","ЦМБ № 3",0,0,0,{"$f":"Таблица1[[#This Row],[Оплачено случаев]]-Таблица1[[#This Row],[План ДВН, чел.]]","v":0},{"$f":"ROUND(Таблица1[[#This Row],[Оплачено случаев]]/Таблица1[[#This Row],[План ДВН, чел.]]*100,1)","v":{"$error":"#DIV/0!"}}]
["Май","ДВН","ЦМБ № 4",0,0,0,{"$f":"Таблица1[[#This Row],[Оплачено случаев]]-Таблица1[[#This Row],[План ДВН, чел.]]","v":0},{"$f":"ROUND(Таблица1[[#This Row],[Оплачено случаев]]/Таблица1[[#This Row],[План ДВН, чел.]]*100,1)","v":{"$error":"#DIV/0!"}}]
["Май","ДВН","ЦМБ № 5",0,0,0,{"$f":"Таблица1[[#This Row],[Оплачено случаев]]-Таблица1[[#This Row],[План ДВН, чел.]]","v":0},{"$f":"ROUND(Таблица1[[#This Row],[Оплачено случаев]]/Таблица1[[#This Row],[План ДВН, чел.]]*100,1)","v":{"$error":"#DIV/0!"}}]
["Май","ДВН","ЦМБ № 6",0,0,0,{"$f":"Таблица1[[#This Row],[Оплачено случаев]]-Таблица1[[#This Row],[План ДВН, чел.]]","v":0},{"$f":"ROUND(Таблица1[[#This Row],[Оплачено случаев]]/Таблица1[[#This Row],[План ДВН, чел.]]*100,1)","v":{"$error":"#DIV/0!"}}]
["Май","ДВН","КГБ № 5",0,0,0,{"$f":"Таблица1[[#This Row],[Оплачено случаев]]-Таблица1[[#This Row],[План ДВН, чел.]]","v":0},{"$f":"ROUND(Таблица1[[#This Row],[Оплачено случаев]]/Таблица1[[#This Row],[План ДВН, чел.]]*100,1)","v":{"$error":"#DIV/0!"}}]
["Май","ДВН","КГКБ № 4",0,0,0,{"$f":"Таблица1[[#This Row],[Оплачено случаев]]-Таблица1[[#This Row],[План ДВН, чел.]]","v":0},{"$f":"ROUND(Таблица1[[#This Row],[Оплачено случаев]]/Таблица1[[#This Row],[План ДВН, чел.]]*100,1)","v":{"$error":"#DIV/0!"}}]
["Май","ДВН","Городская поликлиника",0,0,0,{"$f":"Таблица1[[#This Row],[Оплачено случаев]]-Таблица1[[#This Row],[План ДВН, чел.]]","v":0},{"$f":"ROUND(Таблица1[[#This Row],[Оплачено случаев]]/Таблица1[[#This Row],[План ДВН, чел.]]*100,1)","v":{"$error":"#DIV/0!"}}]
["Май","ДВН","МСЧ № 1 г. Калуги",0,0,0,{"$f":"Таблица1[[#This Row],[Оплачено случаев]]-Таблица1[[#This Row],[План ДВН, чел.]]","v":0},{"$f":"ROUND(Таблица1[[#This Row],[Оплачено случаев]]/Таблица1[[#This Row],[План ДВН, чел.]]*100,1)","v":{"$error":"#DIV/0!"}}]
["Май","ДВН","МСЧ № 2 г. Калуги",0,0,0,{"$f":"Таблица1[[#This Row],[Оплачено случаев]]-Таблица1[[#This Row],[План ДВН, чел.]]","v":0},{"$f":"ROUND(Таблица1[[#This Row],[Оплачено случаев]]/Таблица1[[#This Row],[План ДВН, чел.]]*100,1)","v":{"$error":"#DIV/0!"}}]
["Май","ДВН","МСЧ МВД",0,0,0,{"$f":"Таблица1[[#This Row],[Оплачено случаев]]-Таблица1[[#This Row],[План ДВН, чел.]]","v":0},{"$f":"ROUND(Таблица1[[#This Row],[Оплачено случаев]]/Таблица1[[#This Row],[План ДВН, чел.]]*100,1)","v":{"$error":"#DIV/0!"}}]
["Май","ДВН","ЧУЗ \"Больница \"РЖД - Медицина\" ",0,0,0,{"$f":"Таблица1[[#This Row],[Оплачено случаев]]-Таблица1[[#This Row],[План ДВН, чел.]]","v":0},{"$f":"ROUND(Таблица1[[#This Row],[Оплачено случаев]]/Таблица1[[#This Row],[План ДВН, чел.]]*100,1)","v":{"$error":"#DIV/0!"}}]
["Май","ДВН","КБ № 8 ФМБА",0,0,0,{"$f":"Таблица1[[#This Row],[Оплачено случаев]]-Таблица1[[#This Row],[План ДВН, чел.]]","v":0},{"$f":"ROUND(Таблица1[[#This Row],[Оплачено случаев]]/Таблица1[[#This Row],[План ДВН, чел.]]*100,1)","v":{"$error":"#DIV/0!"}}]
["Май","ДВН","ЦРБ Бабынинского района",0,0,0,{"$f":"Таблица1[[#This Row],[Оплачено случаев]]-Таблица1[[#This Row],[План ДВН, чел.]]","v":0},{"$f":"ROUND(Таблица1[[#This Row],[Оплачено случаев]]/Таблица1[[#This Row],[План ДВН, чел.]]*100,1)","v":{"$error":"#DIV/0!"}}]
["Май","ДВН","ЦРБ Боровского района",0,0,0,{"$f":"Таблица1[[#This Row],[Оплачено случаев]]-Таблица1[[#This Row],[План ДВН, чел.]]","v":0},{"$f":"ROUND(Таблица1[[#This Row],[Оплачено случаев]]/Таблица1[[#This Row],[План ДВН, чел.]]*100,1)","v":{"$error":"#DIV/0!"}}]
["Май","ДВН","ЦРБ Жуковского района",0,0,0,{"$f":"Таблица1[[#This Row],[Оплачено случаев]]-Таблица1[[#This Row],[План ДВН, чел.]]","v":0},{"$f":"ROUND(Таблица1[[#This Row],[Оплачено случаев]]/Таблица1[[#This Row],[План ДВН, чел.]]*100,1)","v":{"$error":"#DIV/0!"}}]
["Май","ДВН","ГП \"Город Кременки\"",0,0,0,{"$f":"Таблица1[[#This Row],[Оплачено случаев]]-Таблица1[[#This Row],[План ДВН, чел.]]","v":0},{"$f":"ROUND(Таблица1[[#This Row],[Оплачено случаев]]/Таблица1[[#This Row],[План ДВН, чел.]]*100,1)","v":{"$error":"#DIV/0!"}}]
["Май","ДВН","ЦРБ Малоярославецкого района",0,0,0,{"$f":"Таблица1[[#This Row],[Оплачено случаев]]-Таблица1[[#This Row],[План ДВН, чел.]]","v":0},{"$f":"ROUND(Таблица1[[#This Row],[Оплачено случаев]]/Таблица1[[#This Row],[План ДВН, чел.]]*100,1)","v":{"$error":"#DIV/0!"}}]
["Май","ДВН","ЦРБ  Тарусского района",0,0,0,{"$f":"Таблица1[[#This Row],[Оплачено случаев]]-Таблица1[[#This Row],[План ДВН, чел.]]","v":0},{"$f":"ROUND(Таблица1[[#This Row],[Оплачено случаев]]/Таблица1[[#This Row],[План ДВН, чел.]]*100,1)","v":{"$error":"#DIV/0!"}}]
["Июнь","ДВН","ЦМБ № 1",{"$f":"AI4","v":0},{"$f":"AJ4","v":0},{"$f":"AK4","v":0},{"$f":"Таблица1[[#This Row],[Оплачено случаев]]-Таблица1[[#This Row],[План ДВН, чел.]]","v":0},{"$f":"ROUND(Таблица1[[#This Row],[Оплачено случаев]]/Таблица1[[#This Row],[План ДВН, чел.]]*100,1)","v":{"$error":"#DIV/0!"}}]
["Июнь","ДВН","ЦМБ № 2",0,0,0,{"$f":"Таблица1[[#This Row],[Оплачено случаев]]-Таблица1[[#This Row],[План ДВН, чел.]]","v":0},{"$f":"ROUND(Таблица1[[#This Row],[Оплачено случаев]]/Таблица1[[#This Row],[План ДВН, чел.]]*100,1)","v":{"$error":"#DIV/0!"}}]
["Июнь","ДВН","ЦМБ № 3",0,0,0,{"$f":"Таблица1[[#This Row],[Оплачено случаев]]-Таблица1[[#This Row],[План ДВН, чел.]]","v":0},{"$f":"ROUND(Таблица1[[#This Row],[Оплачено случаев]]/Таблица1[[#This Row],[План ДВН, чел.]]*100,1)","v":{"$error":"#DIV/0!"}}]
["Июнь","ДВН","ЦМБ № 4",0,0,0,{"$f":"Таблица1[[#This Row],[Оплачено случаев]]-Таблица1[[#This Row],[План ДВН, чел.]]","v":0},{"$f":"ROUND(Таблица1[[#This Row],[Оплачено случаев]]/Таблица1[[#This Row],[План ДВН, чел.]]*100,1)","v":{"$error":"#DIV/0!"}}]
["Июнь","ДВН","ЦМБ № 5",0,0,0,{"$f":"Таблица1[[#This Row],[Оплачено случаев]]-Таблица1[[#This Row],[План ДВН, чел.]]","v":0},{"$f":"ROUND(Таблица1[[#This Row],[Оплачено случаев]]/Таблица1[[#This Row],[План ДВН, чел.]]*100,1)","v":{"$error":"#DIV/0!"}}]
["Июнь","ДВН","ЦМБ № 6",0,0,0,{"$f":"Таблица1[[#This Row],[Оплачено случаев]]-Таблица1[[#This Row],[План ДВН, чел.]]","v":0},{"$f":"ROUND(Таблица1[[#This Row],[Оплачено случаев]]/Таблица1[[#This Row],[План ДВН, чел.]]*100,1)","v":{"$error":"#DIV/0!"}}]
["Июнь","ДВН","КГБ № 5",0,0,0,{"$f":"Таблица1[[#This Row],[Оплачено случаев]]-Таблица1[[#This Row],[План ДВН, чел.]]","v":0},{"$f":"ROUND(Таблица1[[#This Row],[Оплачено случаев]]/Таблица1[[#This Row],[План ДВН, чел.]]*100,1)","v":{"$error":"#DIV/0!"}}]
["Июнь","ДВН","КГКБ № 4",0,0,0,{"$f":"Таблица1[[#This Row],[Оплачено случаев]]-Таблица1[[#This Row],[План ДВН, чел.]]","v":0},{"$f":"ROUND(Таблица1[[#This Row],[Оплачено случаев]]/Таблица1[[#This Row],[План ДВН, чел.]]*100,1)","v":{"$error":"#DIV/0!"}}]
["Июнь","ДВН","Городская поликлиника",0,0,0,{"$f":"Таблица1[[#This Row],[Оплачено случаев]]-Таблица1[[#This Row],[План ДВН, чел.]]","v":0},{"$f":"ROUND(Таблица1[[#This Row],[Оплачено случаев]]/Таблица1[[#This Row],[План ДВН, чел.]]*100,1)","v":{"$error":"#DIV/0!"}}]
["Июнь","ДВН","МСЧ № 1 г. Калуги",0,0,0,{"$f":"Таблица1[[#This Row],[Оплачено случаев]]-Таблица1[[#This Row],[План ДВН, чел.]]","v":0},{"$f":"ROUND(Таблица1[[#This Row],[Оплачено случаев]]/Таблица1[[#This Row],[План ДВН, чел.]]*100,1)","v":{"$error":"#DIV/0!"}}]
["Июнь","ДВН","МСЧ № 2 г. Калуги",0,0,0,{"$f":"Таблица1[[#This Row],[Оплачено случаев]]-Таблица1[[#This Row],[План ДВН, чел.]]","v":0},{"$f":"ROUND(Таблица1[[#This Row],[Оплачено случаев]]/Таблица1[[#This Row],[План ДВН, чел.]]*100,1)","v":{"$error":"#DIV/0!"}}]
["Июнь","ДВН","МСЧ МВД",0,0,0,{"$f":"Таблица1[[#This Row],[Оплачено случаев]]-Таблица1[[#This Row],[План ДВН, чел.]]","v":0},{"$f":"ROUND(Таблица1[[#This Row],[Оплачено случаев]]/Таблица1[[#This Row],[План ДВН, чел.]]*100,1)","v":{"$error":"#DIV/0!"}}]
["Июнь","ДВН","ЧУЗ \"Больница \"РЖД - Медицина\" ",0,0,0,{"$f":"Таблица1[[#This Row],[Оплачено случаев]]-Таблица1[[#This Row],[План ДВН, чел.]]","v":0},{"$f":"ROUND(Таблица1[[#This Row],[Оплачено случаев]]/Таблица1[[#This Row],[План ДВН, чел.]]*100,1)","v":{"$error":"#DIV/0!"}}]
["Июнь","ДВН","КБ № 8 ФМБА",0,0,0,{"$f":"Таблица1[[#This Row],[Оплачено случаев]]-Таблица1[[#This Row],[План ДВН, чел.]]","v":0},{"$f":"ROUND(Таблица1[[#This Row],[Оплачено случаев]]/Таблица1[[#This Row],[План ДВН, чел.]]*100,1)","v":{"$error":"#DIV/0!"}}]
["Июнь","ДВН","ЦРБ Бабынинского района",0,0,0,{"$f":"Таблица1[[#This Row],[Оплачено случаев]]-Таблица1[[#This Row],[План ДВН, чел.]]","v":0},{"$f":"ROUND(Таблица1[[#This Row],[Оплачено случаев]]/Таблица1[[#This Row],[План ДВН, чел.]]*100,1)","v":{"$error":"#DIV/0!"}}]
["Июнь","ДВН","ЦРБ Боровского района",0,0,0,{"$f":"Таблица1[[#This Row],[Оплачено случаев]]-Таблица1[[#This Row],[План ДВН, чел.]]","v":0},{"$f":"ROUND(Таблица1[[#This Row],[Оплачено случаев]]/Таблица1[[#This Row],[План ДВН, чел.]]*100,1)","v":{"$error":"#DIV/0!"}}]
["Июнь","ДВН","ЦРБ Жуковского района",0,0,0,{"$f":"Таблица1[[#This Row],[Оплачено случаев]]-Таблица1[[#This Row],[План ДВН, чел.]]","v":0},{"$f":"ROUND(Таблица1[[#This Row],[Оплачено случаев]]/Таблица1[[#This Row],[План ДВН, чел.]]*100,1)","v":{"$error":"#DIV/0!"}}]
["Июнь","ДВН","ГП \"Город Кременки\"",0,0,0,{"$f":"Таблица1[[#This Row],[Оплачено случаев]]-Таблица1[[#This Row],[План ДВН, чел.]]","v":0},{"$f":"ROUND(Таблица1[[#This Row],[Оплачено случаев]]/Таблица1[[#This Row],[План ДВН, чел.]]*100,1)","v":{"$error":"#DIV/0!"}}]
["Июнь","ДВН","ЦРБ Малоярославецкого района",0,0,0,{"$f":"Таблица1[[#This Row],[Оплачено случаев]]-Таблица1[[#This Row],[План ДВН, чел.]]","v":0},{"$f":"ROUND(Таблица1[[#This Row],[Оплачено случаев]]/Таблица1[[#This Row],[План ДВН, чел.]]*100,1)","v":{"$error":"#DIV/0!"}}]
["Июнь","ДВН","ЦРБ  Тарусского района",0,0,0,{"$f":"Таблица1[[#This Row],[Оплачено случаев]]-Таблица1[[#This Row],[План ДВН, чел.]]","v":0},{"$f":"ROUND(Таблица1[[#This Row],[Оплачено случаев]]/Таблица1[[#This Row],[План ДВН, чел.]]*100,1)","v":{"$error":"#DIV/0!"}}]
["Июль","ДВН","ЦМБ № 1",{"$f":"AN4","v":0},{"$f":"AO4","v":0},{"$f":"AP4","v":0},{"$f":"Таблица1[[#This Row],[Оплачено случаев]]-Таблица1[[#This Row],[План ДВН, чел.]]","v":0},{"$f":"ROUND(Таблица1[[#This Row],[Оплачено случаев]]/Таблица1[[#This Row],[План ДВН, чел.]]*100,1)","v":{"$error":"#DIV/0!"}}]
["Июль","ДВН","ЦМБ № 2",0,0,0,{"$f":"Таблица1[[#This Row],[Оплачено случаев]]-Таблица1[[#This Row],[План ДВН, чел.]]","v":0},{"$f":"ROUND(Таблица1[[#This Row],[Оплачено случаев]]/Таблица1[[#This Row],[План ДВН, чел.]]*100,1)","v":{"$error":"#DIV/0!"}}]
["Июль","ДВН","ЦМБ № 3",0,0,0,{"$f":"Таблица1[[#This Row],[Оплачено случаев]]-Таблица1[[#This Row],[План ДВН, чел.]]","v":0},{"$f":"ROUND(Таблица1[[#This Row],[Оплачено случаев]]/Таблица1[[#This Row],[План ДВН, чел.]]*100,1)","v":{"$error":"#DIV/0!"}}]
["Июль","ДВН","ЦМБ № 4",0,0,0,{"$f":"Таблица1[[#This Row],[Оплачено случаев]]-Таблица1[[#This Row],[План ДВН, чел.]]","v":0},{"$f":"ROUND(Таблица1[[#This Row],[Оплачено случаев]]/Таблица1[[#This Row],[План ДВН, чел.]]*100,1)","v":{"$error":"#DIV/0!"}}]
["Июль","ДВН","ЦМБ № 5",0,0,0,{"$f":"Таблица1[[#This Row],[Оплачено случаев]]-Таблица1[[#This Row],[План ДВН, чел.]]","v":0},{"$f":"ROUND(Таблица1[[#This Row],[Оплачено случаев]]/Таблица1[[#This Row],[План ДВН, чел.]]*100,1)","v":{"$error":"#DIV/0!"}}]
["Июль","ДВН","ЦМБ № 6",0,0,0,{"$f":"Таблица1[[#This Row],[Оплачено случаев]]-Таблица1[[#This Row],[План ДВН, чел.]]","v":0},{"$f":"ROUND(Таблица1[[#This Row],[Оплачено случаев]]/Таблица1[[#This Row],[План ДВН, чел.]]*100,1)","v":{"$error":"#DIV/0!"}}]
["Июль","ДВН","КГБ № 5",0,0,0,{"$f":"Таблица1[[#This Row],[Оплачено случаев]]-Таблица1[[#This Row],[План ДВН, чел.]]","v":0},{"$f":"ROUND(Таблица1[[#This Row],[Оплачено случаев]]/Таблица1[[#This Row],[План ДВН, чел.]]*100,1)","v":{"$error":"#DIV/0!"}}]
["Июль","ДВН","КГКБ № 4",0,0,0,{"$f":"Таблица1[[#This Row],[Оплачено случаев]]-Таблица1[[#This Row],[План ДВН, чел.]]","v":0},{"$f":"ROUND(Таблица1[[#This Row],[Оплачено случаев]]/Таблица1[[#This Row],[План ДВН, чел.]]*100,1)","v":{"$error":"#DIV/0!"}}]
["Июль","ДВН","Городская поликлиника",0,0,0,{"$f":"Таблица1[[#This Row],[Оплачено случаев]]-Таблица1[[#This Row],[План ДВН, чел.]]","v":0},{"$f":"ROUND(Таблица1[[#This Row],[Оплачено случаев]]/Таблица1[[#This Row],[План ДВН, чел.]]*100,1)","v":{"$error":"#DIV/0!"}}]
["Июль","ДВН","МСЧ № 1 г. Калуги",0,0,0,{"$f":"Таблица1[[#This Row],[Оплачено случаев]]-Таблица1[[#This Row],[План ДВН, чел.]]","v":0},{"$f":"ROUND(Таблица1[[#This Row],[Оплачено случаев]]/Таблица1[[#This Row],[План ДВН, чел.]]*100,1)","v":{"$error":"#DIV/0!"}}]
["Июль","ДВН","МСЧ № 2 г. Калуги",0,0,0,{"$f":"Таблица1[[#This Row],[Оплачено случаев]]-Таблица1[[#This Row],[План ДВН, чел.]]","v":0},{"$f":"ROUND(Таблица1[[#This Row],[Оплачено случаев]]/Таблица1[[#This Row],[План ДВН, чел.]]*100,1)","v":{"$error":"#DIV/0!"}}]
["Июль","ДВН","МСЧ МВД",0,0,0,{"$f":"Таблица1[[#This Row],[Оплачено случаев]]-Таблица1[[#This Row],[План ДВН, чел.]]","v":0},{"$f":"ROUND(Таблица1[[#This Row],[Оплачено случаев]]/Таблица1[[#This Row],[План ДВН, чел.]]*100,1)","v":{"$error":"#DIV/0!"}}]
["Июль","ДВН","ЧУЗ \"Больница \"РЖД - Медицина\" ",0,0,0,{"$f":"Таблица1[[#This Row],[Оплачено случаев]]-Таблица1[[#This Row],[План ДВН, чел.]]","v":0},{"$f":"ROUND(Таблица1[[#This Row],[Оплачено случаев]]/Таблица1[[#This Row],[План ДВН, чел.]]*100,1)","v":{"$error":"#DIV/0!"}}]
["Июль","ДВН","КБ № 8 ФМБА",0,0,0,{"$f":"Таблица1[[#This Row],[Оплачено случаев]]-Таблица1[[#This Row],[План ДВН, чел.]]","v":0},{"$f":"ROUND(Таблица1[[#This Row],[Оплачено случаев]]/Таблица1[[#This Row],[План ДВН, чел.]]*100,1)","v":{"$error":"#DIV/0!"}}]
["Июль","ДВН","ЦРБ Бабынинского района",0,0,0,{"$f":"Таблица1[[#This Row],[Оплачено случаев]]-Таблица1[[#This Row],[План ДВН, чел.]]","v":0},{"$f":"ROUND(Таблица1[[#This Row],[Оплачено случаев]]/Таблица1[[#This Row],[План ДВН, чел.]]*100,1)","v":{"$error":"#DIV/0!"}}]
["Июль","ДВН","ЦРБ Боровского района",0,0,0,{"$f":"Таблица1[[#This Row],[Оплачено случаев]]-Таблица1[[#This Row],[План ДВН, чел.]]","v":0},{"$f":"ROUND(Таблица1[[#This Row],[Оплачено случаев]]/Таблица1[[#This Row],[План ДВН, чел.]]*100,1)","v":{"$error":"#DIV/0!"}}]
["Июль","ДВН","ЦРБ Жуковского района",0,0,0,{"$f":"Таблица1[[#This Row],[Оплачено случаев]]-Таблица1[[#This Row],[План ДВН, чел.]]","v":0},{"$f":"ROUND(Таблица1[[#This Row],[Оплачено случаев]]/Таблица1[[#This Row],[План ДВН, чел.]]*100,1)","v":{"$error":"#DIV/0!"}}]
["Июль","ДВН","ГП \"Город Кременки\"",0,0,0,{"$f":"Таблица1[[#This Row],[Оплачено случаев]]-Таблица1[[#This Row],[План ДВН, чел.]]","v":0},{"$f":"ROUND(Таблица1[[#This Row],[Оплачено случаев]]/Таблица1[[#This Row],[План ДВН, чел.]]*100,1)","v":{"$error":"#DIV/0!"}}]
["Июль","ДВН","ЦРБ Малоярославецкого района",0,0,0,{"$f":"Таблица1[[#This Row],[Оплачено случаев]]-Таблица1[[#This Row],[План ДВН, чел.]]","v":0},{"$f":"ROUND(Таблица1[[#This Row],[Оплачено случаев]]/Таблица1[[#This Row],[План ДВН, чел.]]*100,1)","v":{"$error":"#DIV/0!"}}]
["Июль","ДВН","ЦРБ  Тарусского района",0,0,0,{"$f":"Таблица1[[#This Row],[Оплачено случаев]]-Таблица1[[#This Row],[План ДВН, чел.]]","v":0},{"$f":"ROUND(Таблица1[[#This Row],[Оплачено случаев]]/Таблица1[[#This Row],[План ДВН, чел.]]*100,1)","v":{"$error":"#DIV/0!"}}]
["Август","ДВН","ЦМБ № 1",{"$f":"AS4","v":0},{"$f":"AT4","v":0},{"$f":"AU4","v":0},{"$f":"Таблица1[[#This Row],[Оплачено случаев]]-Таблица1[[#This Row],[План ДВН, чел.]]","v":0},{"$f":"ROUND(Таблица1[[#This Row],[Оплачено случаев]]/Таблица1[[#This Row],[План ДВН, чел.]]*100,1)","v":{"$error":"#DIV/0!"}}]
["Август","ДВН","ЦМБ № 2",0,0,0,{"$f":"Таблица1[[#This Row],[Оплачено случаев]]-Таблица1[[#This Row],[План ДВН, чел.]]","v":0},{"$f":"ROUND(Таблица1[[#This Row],[Оплачено случаев]]/Таблица1[[#This Row],[План ДВН, чел.]]*100,1)","v":{"$error":"#DIV/0!"}}]
["Август","ДВН","ЦМБ № 3",0,0,0,{"$f":"Таблица1[[#This Row],[Оплачено случаев]]-Таблица1[[#This Row],[План ДВН, чел.]]","v":0},{"$f":"ROUND(Таблица1[[#This Row],[Оплачено случаев]]/Таблица1[[#This Row],[План ДВН, чел.]]*100,1)","v":{"$error":"#DIV/0!"}}]
["Август","ДВН","ЦМБ № 4",0,0,0,{"$f":"Таблица1[[#This Row],[Оплачено случаев]]-Таблица1[[#This Row],[План ДВН, чел.]]","v":0},{"$f":"ROUND(Таблица1[[#This Row],[Оплачено случаев]]/Таблица1[[#This Row],[План ДВН, чел.]]*100,1)","v":{"$error":"#DIV/0!"}}]
["Август","ДВН","ЦМБ № 5",0,0,0,{"$f":"Таблица1[[#This Row],[Оплачено случаев]]-Таблица1[[#This Row],[План ДВН, чел.]]","v":0},{"$f":"ROUND(Таблица1[[#This Row],[Оплачено случаев]]/Таблица1[[#This Row],[План ДВН, чел.]]*100,1)","v":{"$error":"#DIV/0!"}}]
["Август","ДВН","ЦМБ № 6",0,0,0,{"$f":"Таблица1[[#This Row],[Оплачено случаев]]-Таблица1[[#This Row],[План ДВН, чел.]]","v":0},{"$f":"ROUND(Таблица1[[#This Row],[Оплачено случаев]]/Таблица1[[#This Row],[План ДВН, чел.]]*100,1)","v":{"$error":"#DIV/0!"}}]
["Август","ДВН","КГБ № 5",0,0,0,{"$f":"Таблица1[[#This Row],[Оплачено случаев]]-Таблица1[[#This Row],[План ДВН, чел.]]","v":0},{"$f":"ROUND(Таблица1[[#This Row],[Оплачено случаев]]/Таблица1[[#This Row],[План ДВН, чел.]]*100,1)","v":{"$error":"#DIV/0!"}}]
["Август","ДВН","КГКБ № 4",0,0,0,{"$f":"Таблица1[[#This Row],[Оплачено случаев]]-Таблица1[[#This Row],[План ДВН, чел.]]","v":0},{"$f":"ROUND(Таблица1[[#This Row],[Оплачено случаев]]/Таблица1[[#This Row],[План ДВН, чел.]]*100,1)","v":{"$error":"#DIV/0!"}}]
["Август","ДВН","Городская поликлиника",0,0,0,{"$f":"Таблица1[[#This Row],[Оплачено случаев]]-Таблица1[[#This Row],[План ДВН, чел.]]","v":0},{"$f":"ROUND(Таблица1[[#This Row],[Оплачено случаев]]/Таблица1[[#This Row],[План ДВН, чел.]]*100,1)","v":{"$error":"#DIV/0!"}}]
["Август","ДВН","МСЧ № 1 г. Калуги",0,0,0,{"$f":"Таблица1[[#This Row],[Оплачено случаев]]-Таблица1[[#This Row],[План ДВН, чел.]]","v":0},{"$f":"ROUND(Таблица1[[#This Row],[Оплачено случаев]]/Таблица1[[#This Row],[План ДВН, чел.]]*100,1)","v":{"$error":"#DIV/0!"}}]
["Август","ДВН","МСЧ № 2 г. Калуги",0,0,0,{"$f":"Таблица1[[#This Row],[Оплачено случаев]]-Таблица1[[#This Row],[План ДВН, чел.]]","v":0},{"$f":"ROUND(Таблица1[[#This Row],[Оплачено случаев]]/Таблица1[[#This Row],[План ДВН, чел.]]*100,1)","v":{"$error":"#DIV/0!"}}]
["Август","ДВН","МСЧ МВД",0,0,0,{"$f":"Таблица1[[#This Row],[Оплачено случаев]]-Таблица1[[#This Row],[План ДВН, чел.]]","v":0},{"$f":"ROUND(Таблица1[[#This Row],[Оплачено случаев]]/Таблица1[[#This Row],[План ДВН, чел.]]*100,1)","v":{"$error":"#DIV/0!"}}]
["Август","ДВН","ЧУЗ \"Больница \"РЖД - Медицина\" ",0,0,0,{"$f":"Таблица1[[#This Row],[Оплачено случаев]]-Таблица1[[#This Row],[План ДВН, чел.]]","v":0},{"$f":"ROUND(Таблица1[[#This Row],[Оплачено случаев]]/Таблица1[[#This Row],[План ДВН, чел.]]*100,1)","v":{"$error":"#DIV/0!"}}]
["Август","ДВН","КБ № 8 ФМБА",0,0,0,{"$f":"Таблица1[[#This Row],[Оплачено случаев]]-Таблица1[[#This Row],[План ДВН, чел.]]","v":0},{"$f":"ROUND(Таблица1[[#This Row],[Оплачено случаев]]/Таблица1[[#This Row],[План ДВН, чел.]]*100,1)","v":{"$error":"#DIV/0!"}}]
["Август","ДВН","ЦРБ Бабынинского района",0,0,0,{"$f":"Таблица1[[#This Row],[Оплачено случаев]]-Таблица1[[#This Row],[План ДВН, чел.]]","v":0},{"$f":"ROUND(Таблица1[[#This Row],[Оплачено случаев]]/Таблица1[[#This Row],[План ДВН, чел.]]*100,1)","v":{"$error":"#DIV/0!"}}]
["Август","ДВН","ЦРБ Боровского района",0,0,0,{"$f":"Таблица1[[#This Row],[Оплачено случаев]]-Таблица1[[#This Row],[План ДВН, чел.]]","v":0},{"$f":"ROUND(Таблица1[[#This Row],[Оплачено случаев]]/Таблица1[[#This Row],[План ДВН, чел.]]*100,1)","v":{"$error":"#DIV/0!"}}]
["Август","ДВН","ЦРБ Жуковского района",0,0,0,{"$f":"Таблица1[[#This Row],[Оплачено случаев]]-Таблица1[[#This Row],[План ДВН, чел.]]","v":0},{"$f":"ROUND(Таблица1[[#This Row],[Оплачено случаев]]/Таблица1[[#This Row],[План ДВН, чел.]]*100,1)","v":{"$error":"#DIV/0!"}}]
["Август","ДВН","ГП \"Город Кременки\"",0,0,0,{"$f":"Таблица1[[#This Row],[Оплачено случаев]]-Таблица1[[#This Row],[План ДВН, чел.]]","v":0},{"$f":"ROUND(Таблица1[[#This Row],[Оплачено случаев]]/Таблица1[[#This Row],[План ДВН, чел.]]*100,1)","v":{"$error":"#DIV/0!"}}]
["Август","ДВН","ЦРБ Малоярославецкого района",0,0,0,{"$f":"Таблица1[[#This Row],[Оплачено случаев]]-Таблица1[[#This Row],[План ДВН, чел.]]","v":0},{"$f":"ROUND(Таблица1[[#This Row],[Оплачено случаев]]/Таблица1[[#This Row],[План ДВН, чел.]]*100,1)","v":{"$error":"#DIV/0!"}}]
["Август","ДВН","ЦРБ  Тарусского района",0,0,0,{"$f":"Таблица1[[#This Row],[Оплачено случаев]]-Таблица1[[#This Row],[План ДВН, чел.]]","v":0},{"$f":"ROUND(Таблица1[[#This Row],[Оплачено случаев]]/Таблица1[[#This Row],[План ДВН, чел.]]*100,1)","v":{"$error":"#DIV/0!"}}]
["Сентябрь","ДВН","ЦМБ № 1",{"$f":"AX4","v":0},{"$f":"AY4","v":0},{"$f":"AZ4","v":0},{"$f":"Таблица1[[#This Row],[Оплачено случаев]]-Таблица1[[#This Row],[План ДВН, чел.]]","v":0},{"$f":"ROUND(Таблица1[[#This Row],[Оплачено случаев]]/Таблица1[[#This Row],[План ДВН, чел.]]*100,1)","v":{"$error":"#DIV/0!"}}]
["Сентябрь","ДВН","ЦМБ № 2",0,0,0,{"$f":"Таблица1[[#This Row],[Оплачено случаев]]-Таблица1[[#This Row],[План ДВН, чел.]]","v":0},{"$f":"ROUND(Таблица1[[#This Row],[Оплачено случаев]]/Таблица1[[#This Row],[План ДВН, чел.]]*100,1)","v":{"$error":"#DIV/0!"}}]
["Сентябрь","ДВН","ЦМБ № 3",0,0,0,{"$f":"Таблица1[[#This Row],[Оплачено случаев]]-Таблица1[[#This Row],[План ДВН, чел.]]","v":0},{"$f":"ROUND(Таблица1[[#This Row],[Оплачено случаев]]/Таблица1[[#This Row],[План ДВН, чел.]]*100,1)","v":{"$error":"#DIV/0!"}}]
["Сентябрь","ДВН","ЦМБ № 4",0,0,0,{"$f":"Таблица1[[#This Row],[Оплачено случаев]]-Таблица1[[#This Row],[План ДВН, чел.]]","v":0},{"$f":"ROUND(Таблица1[[#This Row],[Оплачено случаев]]/Таблица1[[#This Row],[План ДВН, чел.]]*100,1)","v":{"$error":"#DIV/0!"}}]
["Сентябрь","ДВН","ЦМБ № 5",0,0,0,{"$f":"Таблица1[[#This Row],[Оплачено случаев]]-Таблица1[[#This Row],[План ДВН, чел.]]","v":0},{"$f":"ROUND(Таблица1[[#This Row],[Оплачено случаев]]/Таблица1[[#This Row],[План ДВН, чел.]]*100,1)","v":{"$error":"#DIV/0!"}}]
["Сентябрь","ДВН","ЦМБ № 6",0,0,0,{"$f":"Таблица1[[#This Row],[Оплачено случаев]]-Таблица1[[#This Row],[План ДВН, чел.]]","v":0},{"$f":"ROUND(Таблица1[[#This Row],[Оплачено случаев]]/Таблица1[[#This Row],[План ДВН, чел.]]*100,1)","v":{"$error":"#DIV/0!"}}]
["Сентябрь","ДВН","КГБ № 5",0,0,0,{"$f":"Таблица1[[#This Row],[Оплачено случаев]]-Таблица1[[#This Row],[План ДВН, чел.]]","v":0},{"$f":"ROUND(Таблица1[[#This Row],[Оплачено случаев]]/Таблица1[[#This Row],[План ДВН, чел.]]*100,1)","v":{"$error":"#DIV/0!"}}]
["Сентябрь","ДВН","КГКБ № 4",0,0,0,{"$f":"Таблица1[[#This Row],[Оплачено случаев]]-Таблица1[[#This Row],[План ДВН, чел.]]","v":0},{"$f":"ROUND(Таблица1[[#This Row],[Оплачено случаев]]/Таблица1[[#This Row],[План ДВН, чел.]]*100,1)","v":{"$error":"#DIV/0!"}}]
["Сентябрь","ДВН","Городская поликлиника",0,0,0,{"$f":"Таблица1[[#This Row],[Оплачено случаев]]-Таблица1[[#This Row],[План ДВН, чел.]]","v":0},{"$f":"ROUND(Таблица1[[#This Row],[Оплачено случаев]]/Таблица1[[#This Row],[План ДВН, чел.]]*100,1)","v":{"$error":"#DIV/0!"}}]
["Сентябрь","ДВН","МСЧ № 1 г. Калуги",0,0,0,{"$f":"Таблица1[[#This Row],[Оплачено случаев]]-Таблица1[[#This Row],[План ДВН, чел.]]","v":0},{"$f":"ROUND(Таблица1[[#This Row],[Оплачено случаев]]/Таблица1[[#This Row],[План ДВН, чел.]]*100,1)","v":{"$error":"#DIV/0!"}}]
["Сентябрь","ДВН","МСЧ № 2 г. Калуги",0,0,0,{"$f":"Таблица1[[#This Row],[Оплачено случаев]]-Таблица1[[#This Row],[План ДВН, чел.]]","v":0},{"$f":"ROUND(Таблица1[[#This Row],[Оплачено случаев]]/Таблица1[[#This Row],[План ДВН, чел.]]*100,1)","v":{"$error":"#DIV/0!"}}]
["Сентябрь","ДВН","МСЧ МВД",0,0,0,{"$f":"Таблица1[[#This Row],[Оплачено случаев]]-Таблица1[[#This Row],[План ДВН, чел.]]","v":0},{"$f":"ROUND(Таблица1[[#This Row],[Оплачено случаев]]/Таблица1[[#This Row],[План ДВН, чел.]]*100,1)","v":{"$error":"#DIV/0!"}}]
["Сентябрь","ДВН","ЧУЗ \"Больница \"РЖД - Медицина\" ",0,0,0,{"$f":"Таблица1[[#This Row],[Оплачено случаев]]-Таблица1[[#This Row],[План ДВН, чел.]]","v":0},{"$f":"ROUND(Таблица1[[#This Row],[Оплачено случаев]]/Таблица1[[#This Row],[План ДВН, чел.]]*100,1)","v":{"$error":"#DIV/0!"}}]
["Сентябрь","ДВН","КБ № 8 ФМБА",0,0,0,{"$f":"Таблица1[[#This Row],[Оплачено случаев]]-Таблица1[[#This Row],[План ДВН, чел.]]","v":0},{"$f":"ROUND(Таблица1[[#This Row],[Оплачено случаев]]/Таблица1[[#This Row],[План ДВН, чел.]]*100,1)","v":{"$error":"#DIV/0!"}}]
["Сентябрь","ДВН","ЦРБ Бабынинского района",0,0,0,{"$f":"Таблица1[[#This Row],[Оплачено случаев]]-Таблица1[[#This Row],[План ДВН, чел.]]","v":0},{"$f":"ROUND(Таблица1[[#This Row],[Оплачено случаев]]/Таблица1[[#This Row],[План ДВН, чел.]]*100,1)","v":{"$error":"#DIV/0!"}}]
["Сентябрь","ДВН","ЦРБ Боровского района",0,0,0,{"$f":"Таблица1[[#This Row],[Оплачено случаев]]-Таблица1[[#This Row],[План ДВН, чел.]]","v":0},{"$f":"ROUND(Таблица1[[#This Row],[Оплачено случаев]]/Таблица1[[#This Row],[План ДВН, чел.]]*100,1)","v":{"$error":"#DIV/0!"}}]
["Сентябрь","ДВН","ЦРБ Жуковского района",0,0,0,{"$f":"Таблица1[[#This Row],[Оплачено случаев]]-Таблица1[[#This Row],[План ДВН, чел.]]","v":0},{"$f":"ROUND(Таблица1[[#This Row],[Оплачено случаев]]/Таблица1[[#This Row],[План ДВН, чел.]]*100,1)","v":{"$error":"#DIV/0!"}}]
["Сентябрь","ДВН","ГП \"Город Кременки\"",0,0,0,{"$f":"Таблица1[[#This Row],[Оплачено случаев]]-Таблица1[[#This Row],[План ДВН, чел.]]","v":0},{"$f":"ROUND(Таблица1[[#This Row],[Оплачено случаев]]/Таблица1[[#This Row],[План ДВН, чел.]]*100,1)","v":{"$error":"#DIV/0!"}}]
["Сентябрь","ДВН","ЦРБ Малоярославецкого района",0,0,0,{"$f":"Таблица1[[#This Row],[Оплачено случаев]]-Таблица1[[#This Row],[План ДВН, чел.]]","v":0},{"$f":"ROUND(Таблица1[[#This Row],[Оплачено случаев]]/Таблица1[[#This Row],[План ДВН, чел.]]*100,1)","v":{"$error":"#DIV/0!"}}]
["Сентябрь","ДВН","ЦРБ  Тарусского района",0,0,0,{"$f":"Таблица1[[#This Row],[Оплачено случаев]]-Таблица1[[#This Row],[План ДВН, чел.]]","v":0},{"$f":"ROUND(Таблица1[[#This Row],[Оплачено случаев]]/Таблица1[[#This Row],[План ДВН, чел.]]*100,1)","v":{"$error":"#DIV/0!"}}]
["Октябрь","ДВН","ЦМБ № 1",{"$f":"BC4","v":0},{"$f":"BD4","v":0},{"$f":"BE4","v":0},{"$f":"Таблица1[[#This Row],[Оплачено случаев]]-Таблица1[[#This Row],[План ДВН, чел.]]","v":0},{"$f":"ROUND(Таблица1[[#This Row],[Оплачено случаев]]/Таблица1[[#This Row],[План ДВН, чел.]]*100,1)","v":{"$error":"#DIV/0!"}}]
["Октябрь","ДВН","ЦМБ № 2",0,0,0,{"$f":"Таблица1[[#This Row],[Оплачено случаев]]-Таблица1[[#This Row],[План ДВН, чел.]]","v":0},{"$f":"ROUND(Таблица1[[#This Row],[Оплачено случаев]]/Таблица1[[#This Row],[План ДВН, чел.]]*100,1)","v":{"$error":"#DIV/0!"}}]
["Октябрь","ДВН","ЦМБ № 3",0,0,0,{"$f":"Таблица1[[#This Row],[Оплачено случаев]]-Таблица1[[#This Row],[План ДВН, чел.]]","v":0},{"$f":"ROUND(Таблица1[[#This Row],[Оплачено случаев]]/Таблица1[[#This Row],[План ДВН, чел.]]*100,1)","v":{"$error":"#DIV/0!"}}]
["Октябрь","ДВН","ЦМБ № 4",0,0,0,{"$f":"Таблица1[[#This Row],[Оплачено случаев]]-Таблица1[[#This Row],[План ДВН, чел.]]","v":0},{"$f":"ROUND(Таблица1[[#This Row],[Оплачено случаев]]/Таблица1[[#This Row],[План ДВН, чел.]]*100,1)","v":{"$error":"#DIV/0!"}}]
["Октябрь","ДВН","ЦМБ № 5",0,0,0,{"$f":"Таблица1[[#This Row],[Оплачено случаев]]-Таблица1[[#This Row],[План ДВН, чел.]]","v":0},{"$f":"ROUND(Таблица1[[#This Row],[Оплачено случаев]]/Таблица1[[#This Row],[План ДВН, чел.]]*100,1)","v":{"$error":"#DIV/0!"}}]
["Октябрь","ДВН","ЦМБ № 6",0,0,0,{"$f":"Таблица1[[#This Row],[Оплачено случаев]]-Таблица1[[#This Row],[План ДВН, чел.]]","v":0},{"$f":"ROUND(Таблица1[[#This Row],[Оплачено случаев]]/Таблица1[[#This Row],[План ДВН, чел.]]*100,1)","v":{"$error":"#DIV/0!"}}]
["Октябрь","ДВН","КГБ № 5",0,0,0,{"$f":"Таблица1[[#This Row],[Оплачено случаев]]-Таблица1[[#This Row],[План ДВН, чел.]]","v":0},{"$f":"ROUND(Таблица1[[#This Row],[Оплачено случаев]]/Таблица1[[#This Row],[План ДВН, чел.]]*100,1)","v":{"$error":"#DIV/0!"}}]
["Октябрь","ДВН","КГКБ № 4",0,0,0,{"$f":"Таблица1[[#This Row],[Оплачено случаев]]-Таблица1[[#This Row],[План ДВН, чел.]]","v":0},{"$f":"ROUND(Таблица1[[#This Row],[Оплачено случаев]]/Таблица1[[#This Row],[План ДВН, чел.]]*100,1)","v":{"$error":"#DIV/0!"}}]
["Октябрь","ДВН","Городская поликлиника",0,0,0,{"$f":"Таблица1[[#This Row],[Оплачено случаев]]-Таблица1[[#This Row],[План ДВН, чел.]]","v":0},{"$f":"ROUND(Таблица1[[#This Row],[Оплачено случаев]]/Таблица1[[#This Row],[План ДВН, чел.]]*100,1)","v":{"$error":"#DIV/0!"}}]
["Октябрь","ДВН","МСЧ № 1 г. Калуги",0,0,0,{"$f":"Таблица1[[#This Row],[Оплачено случаев]]-Таблица1[[#This Row],[План ДВН, чел.]]","v":0},{"$f":"ROUND(Таблица1[[#This Row],[Оплачено случаев]]/Таблица1[[#This Row],[План ДВН, чел.]]*100,1)","v":{"$error":"#DIV/0!"}}]
["Октябрь","ДВН","МСЧ № 2 г. Калуги",0,0,0,{"$f":"Таблица1[[#This Row],[Оплачено случаев]]-Таблица1[[#This Row],[План ДВН, чел.]]","v":0},{"$f":"ROUND(Таблица1[[#This Row],[Оплачено случаев]]/Таблица1[[#This Row],[План ДВН, чел.]]*100,1)","v":{"$error":"#DIV/0!"}}]
["Октябрь","ДВН","МСЧ МВД",0,0,0,{"$f":"Таблица1[[#This Row],[Оплачено случаев]]-Таблица1[[#This Row],[План ДВН, чел.]]","v":0},{"$f":"ROUND(Таблица1[[#This Row],[Оплачено случаев]]/Таблица1[[#This Row],[План ДВН, чел.]]*100,1)","v":{"$error":"#DIV/0!"}}]
["Октябрь","ДВН","ЧУЗ \"Больница \"РЖД - Медицина\" ",0,0,0,{"$f":"Таблица1[[#This Row],[Оплачено случаев]]-Таблица1[[#This Row],[План ДВН, чел.]]","v":0},{"$f":"ROUND(Таблица1[[#This Row],[Оплачено случаев]]/Таблица1[[#This Row],[План ДВН, чел.]]*100,1)","v":{"$error":"#DIV/0!"}}]
["Октябрь","ДВН","КБ № 8 ФМБА",0,0,0,{"$f":"Таблица1[[#This Row],[Оплачено случаев]]-Таблица1[[#This Row],[План ДВН, чел.]]","v":0},{"$f":"ROUND(Таблица1[[#This Row],[Оплачено случаев]]/Таблица1[[#This Row],[План ДВН, чел.]]*100,1)","v":{"$error":"#DIV/0!"}}]
["Октябрь","ДВН","ЦРБ Бабынинского района",0,0,0,{"$f":"Таблица1[[#This Row],[Оплачено случаев]]-Таблица1[[#This Row],[План ДВН, чел.]]","v":0},{"$f":"ROUND(Таблица1[[#This Row],[Оплачено случаев]]/Таблица1[[#This Row],[План ДВН, чел.]]*100,1)","v":{"$error":"#DIV/0!"}}]
["Октябрь","ДВН","ЦРБ Боровского района",0,0,0,{"$f":"Таблица1[[#This Row],[Оплачено случаев]]-Таблица1[[#This Row],[План ДВН, чел.]]","v":0},{"$f":"ROUND(Таблица1[[#This Row],[Оплачено случаев]]/Таблица1[[#This Row],[План ДВН, чел.]]*100,1)","v":{"$error":"#DIV/0!"}}]
["Октябрь","ДВН","ЦРБ Жуковского района",0,0,0,{"$f":"Таблица1[[#This Row],[Оплачено случаев]]-Таблица1[[#This Row],[План ДВН, чел.]]","v":0},{"$f":"ROUND(Таблица1[[#This Row],[Оплачено случаев]]/Таблица1[[#This Row],[План ДВН, чел.]]*100,1)","v":{"$error":"#DIV/0!"}}]
["Октябрь","ДВН","ГП \"Город Кременки\"",0,0,0,{"$f":"Таблица1[[#This Row],[Оплачено случаев]]-Таблица1[[#This Row],[План ДВН, чел.]]","v":0},{"$f":"ROUND(Таблица1[[#This Row],[Оплачено случаев]]/Таблица1[[#This Row],[План ДВН, чел.]]*100,1)","v":{"$error":"#DIV/0!"}}]
["Октябрь","ДВН","ЦРБ Малоярославецкого района",0,0,0,{"$f":"Таблица1[[#This Row],[Оплачено случаев]]-Таблица1[[#This Row],[План ДВН, чел.]]","v":0},{"$f":"ROUND(Таблица1[[#This Row],[Оплачено случаев]]/Таблица1[[#This Row],[План ДВН, чел.]]*100,1)","v":{"$error":"#DIV/0!"}}]
["Октябрь","ДВН","ЦРБ  Тарусского района",0,0,0,{"$f":"Таблица1[[#This Row],[Оплачено случаев]]-Таблица1[[#This Row],[План ДВН, чел.]]","v":0},{"$f":"ROUND(Таблица1[[#This Row],[Оплачено случаев]]/Таблица1[[#This Row],[План ДВН, чел.]]*100,1)","v":{"$error":"#DIV/0!"}}]
["Ноябрь","ДВН","ЦМБ № 1",{"$f":"BH4","v":0},{"$f":"BI4","v":0},{"$f":"BJ4","v":0},{"$f":"Таблица1[[#This Row],[Оплачено случаев]]-Таблица1[[#This Row],[План ДВН, чел.]]","v":0},{"$f":"ROUND(Таблица1[[#This Row],[Оплачено случаев]]/Таблица1[[#This Row],[План ДВН, чел.]]*100,1)","v":{"$error":"#DIV/0!"}}]
["Ноябрь","ДВН","ЦМБ № 2",0,0,0,{"$f":"Таблица1[[#This Row],[Оплачено случаев]]-Таблица1[[#This Row],[План ДВН, чел.]]","v":0},{"$f":"ROUND(Таблица1[[#This Row],[Оплачено случаев]]/Таблица1[[#This Row],[План ДВН, чел.]]*100,1)","v":{"$error":"#DIV/0!"}}]
["Ноябрь","ДВН","ЦМБ № 3",0,0,0,{"$f":"Таблица1[[#This Row],[Оплачено случаев]]-Таблица1[[#This Row],[План ДВН, чел.]]","v":0},{"$f":"ROUND(Таблица1[[#This Row],[Оплачено случаев]]/Таблица1[[#This Row],[План ДВН, чел.]]*100,1)","v":{"$error":"#DIV/0!"}}]
["Ноябрь","ДВН","ЦМБ № 4",0,0,0,{"$f":"Таблица1[[#This Row],[Оплачено случаев]]-Таблица1[[#This Row],[План ДВН, чел.]]","v":0},{"$f":"ROUND(Таблица1[[#This Row],[Оплачено случаев]]/Таблица1[[#This Row],[План ДВН, чел.]]*100,1)","v":{"$error":"#DIV/0!"}}]
["Ноябрь","ДВН","ЦМБ № 5",0,0,0,{"$f":"Таблица1[[#This Row],[Оплачено случаев]]-Таблица1[[#This Row],[План ДВН, чел.]]","v":0},{"$f":"ROUND(Таблица1[[#This Row],[Оплачено случаев]]/Таблица1[[#This Row],[План ДВН, чел.]]*100,1)","v":{"$error":"#DIV/0!"}}]
["Ноябрь","ДВН","ЦМБ № 6",0,0,0,{"$f":"Таблица1[[#This Row],[Оплачено случаев]]-Таблица1[[#This Row],[План ДВН, чел.]]","v":0},{"$f":"ROUND(Таблица1[[#This Row],[Оплачено случаев]]/Таблица1[[#This Row],[План ДВН, чел.]]*100,1)","v":{"$error":"#DIV/0!"}}]
["Ноябрь","ДВН","КГБ № 5",0,0,0,{"$f":"Таблица1[[#This Row],[Оплачено случаев]]-Таблица1[[#This Row],[План ДВН, чел.]]","v":0},{"$f":"ROUND(Таблица1[[#This Row],[Оплачено случаев]]/Таблица1[[#This Row],[План ДВН, чел.]]*100,1)","v":{"$error":"#DIV/0!"}}]
["Ноябрь","ДВН","КГКБ № 4",0,0,0,{"$f":"Таблица1[[#This Row],[Оплачено случаев]]-Таблица1[[#This Row],[План ДВН, чел.]]","v":0},{"$f":"ROUND(Таблица1[[#This Row],[Оплачено случаев]]/Таблица1[[#This Row],[План ДВН, чел.]]*100,1)","v":{"$error":"#DIV/0!"}}]
["Ноябрь","ДВН","Городская поликлиника",0,0,0,{"$f":"Таблица1[[#This Row],[Оплачено случаев]]-Таблица1[[#This Row],[План ДВН, чел.]]","v":0},{"$f":"ROUND(Таблица1[[#This Row],[Оплачено случаев]]/Таблица1[[#This Row],[План ДВН, чел.]]*100,1)","v":{"$error":"#DIV/0!"}}]
["Ноябрь","ДВН","МСЧ № 1 г. Калуги",0,0,0,{"$f":"Таблица1[[#This Row],[Оплачено случаев]]-Таблица1[[#This Row],[План ДВН, чел.]]","v":0},{"$f":"ROUND(Таблица1[[#This Row],[Оплачено случаев]]/Таблица1[[#This Row],[План ДВН, чел.]]*100,1)","v":{"$error":"#DIV/0!"}}]
["Ноябрь","ДВН","МСЧ № 2 г. Калуги",0,0,0,{"$f":"Таблица1[[#This Row],[Оплачено случаев]]-Таблица1[[#This Row],[План ДВН, чел.]]","v":0},{"$f":"ROUND(Таблица1[[#This Row],[Оплачено случаев]]/Таблица1[[#This Row],[План ДВН, чел.]]*100,1)","v":{"$error":"#DIV/0!"}}]
["Ноябрь","ДВН","МСЧ МВД",0,0,0,{"$f":"Таблица1[[#This Row],[Оплачено случаев]]-Таблица1[[#This Row],[План ДВН, чел.]]","v":0},{"$f":"ROUND(Таблица1[[#This Row],[Оплачено случаев]]/Таблица1[[#This Row],[План ДВН, чел.]]*100,1)","v":{"$error":"#DIV/0!"}}]
["Ноябрь","ДВН","ЧУЗ \"Больница \"РЖД - Медицина\" ",0,0,0,{"$f":"Таблица1[[#This Row],[Оплачено случаев]]-Таблица1[[#This Row],[План ДВН, чел.]]","v":0},{"$f":"ROUND(Таблица1[[#This Row],[Оплачено случаев]]/Таблица1[[#This Row],[План ДВН, чел.]]*100,1)","v":{"$error":"#DIV/0!"}}]
["Ноябрь","ДВН","КБ № 8 ФМБА",0,0,0,{"$f":"Таблица1[[#This Row],[Оплачено случаев]]-Таблица1[[#This Row],[План ДВН, чел.]]","v":0},{"$f":"ROUND(Таблица1[[#This Row],[Оплачено случаев]]/Таблица1[[#This Row],[План ДВН, чел.]]*100,1)","v":{"$error":"#DIV/0!"}}]
["Ноябрь","ДВН","ЦРБ Бабынинского района",0,0,0,{"$f":"Таблица1[[#This Row],[Оплачено случаев]]-Таблица1[[#This Row],[План ДВН, чел.]]","v":0},{"$f":"ROUND(Таблица1[[#This Row],[Оплачено случаев]]/Таблица1[[#This Row],[План ДВН, чел.]]*100,1)","v":{"$error":"#DIV/0!"}}]
["Ноябрь","ДВН","ЦРБ Боровского района",0,0,0,{"$f":"Таблица1[[#This Row],[Оплачено случаев]]-Таблица1[[#This Row],[План ДВН, чел.]]","v":0},{"$f":"ROUND(Таблица1[[#This Row],[Оплачено случаев]]/Таблица1[[#This Row],[План ДВН, чел.]]*100,1)","v":{"$error":"#DIV/0!"}}]
["Ноябрь","ДВН","ЦРБ Жуковского района",0,0,0,{"$f":"Таблица1[[#This Row],[Оплачено случаев]]-Таблица1[[#This Row],[План ДВН, чел.]]","v":0},{"$f":"ROUND(Таблица1[[#This Row],[Оплачено случаев]]/Таблица1[[#This Row],[План ДВН, чел.]]*100,1)","v":{"$error":"#DIV/0!"}}]
["Ноябрь","ДВН","ГП \"Город Кременки\"",0,0,0,{"$f":"Таблица1[[#This Row],[Оплачено случаев]]-Таблица1[[#This Row],[План ДВН, чел.]]","v":0},{"$f":"ROUND(Таблица1[[#This Row],[Оплачено случаев]]/Таблица1[[#This Row],[План ДВН, чел.]]*100,1)","v":{"$error":"#DIV/0!"}}]
["Ноябрь","ДВН","ЦРБ Малоярославецкого района",0,0,0,{"$f":"Таблица1[[#This Row],[Оплачено случаев]]-Таблица1[[#This Row],[План ДВН, чел.]]","v":0},{"$f":"ROUND(Таблица1[[#This Row],[Оплачено случаев]]/Таблица1[[#This Row],[План ДВН, чел.]]*100,1)","v":{"$error":"#DIV/0!"}}]
["Ноябрь","ДВН","ЦРБ  Тарусского района",0,0,0,{"$f":"Таблица1[[#This Row],[Оплачено случаев]]-Таблица1[[#This Row],[План ДВН, чел.]]","v":0},{"$f":"ROUND(Таблица1[[#This Row],[Оплачено случаев]]/Таблица1[[#This Row],[План ДВН, чел.]]*100,1)","v":{"$error":"#DIV/0!"}}]
["Декабрь","ДВН","ЦМБ № 1",{"$f":"BM4","v":0},{"$f":"BN4","v":0},{"$f":"BO4","v":0},{"$f":"Таблица1[[#This Row],[Оплачено случаев]]-Таблица1[[#This Row],[План ДВН, чел.]]","v":0},{"$f":"ROUND(Таблица1[[#This Row],[Оплачено случаев]]/Таблица1[[#This Row],[План ДВН, чел.]]*100,1)","v":{"$error":"#DIV/0!"}}]
["Декабрь","ДВН","ЦМБ № 2",0,0,0,{"$f":"Таблица1[[#This Row],[Оплачено случаев]]-Таблица1[[#This Row],[План ДВН, чел.]]","v":0},{"$f":"ROUND(Таблица1[[#This Row],[Оплачено случаев]]/Таблица1[[#This Row],[План ДВН, чел.]]*100,1)","v":{"$error":"#DIV/0!"}}]
["Декабрь","ДВН","ЦМБ № 3",0,0,0,{"$f":"Таблица1[[#This Row],[Оплачено случаев]]-Таблица1[[#This Row],[План ДВН, чел.]]","v":0},{"$f":"ROUND(Таблица1[[#This Row],[Оплачено случаев]]/Таблица1[[#This Row],[План ДВН, чел.]]*100,1)","v":{"$error":"#DIV/0!"}}]
["Декабрь","ДВН","ЦМБ № 4",0,0,0,{"$f":"Таблица1[[#This Row],[Оплачено случаев]]-Таблица1[[#This Row],[План ДВН, чел.]]","v":0},{"$f":"ROUND(Таблица1[[#This Row],[Оплачено случаев]]/Таблица1[[#This Row],[План ДВН, чел.]]*100,1)","v":{"$error":"#DIV/0!"}}]
["Декабрь","ДВН","ЦМБ № 5",0,0,0,{"$f":"Таблица1[[#This Row],[Оплачено случаев]]-Таблица1[[#This Row],[План ДВН, чел.]]","v":0},{"$f":"ROUND(Таблица1[[#This Row],[Оплачено случаев]]/Таблица1[[#This Row],[План ДВН, чел.]]*100,1)","v":{"$error":"#DIV/0!"}}]
["Декабрь","ДВН","ЦМБ № 6",0,0,0,{"$f":"Таблица1[[#This Row],[Оплачено случаев]]-Таблица1[[#This Row],[План ДВН, чел.]]","v":0},{"$f":"ROUND(Таблица1[[#This Row],[Оплачено случаев]]/Таблица1[[#This Row],[План ДВН, чел.]]*100,1)","v":{"$error":"#DIV/0!"}}]
["Декабрь","ДВН","КГБ № 5",0,0,0,{"$f":"Таблица1[[#This Row],[Оплачено случаев]]-Таблица1[[#This Row],[План ДВН, чел.]]","v":0},{"$f":"ROUND(Таблица1[[#This Row],[Оплачено случаев]]/Таблица1[[#This Row],[План ДВН, чел.]]*100,1)","v":{"$error":"#DIV/0!"}}]
["Декабрь","ДВН","КГКБ № 4",0,0,0,{"$f":"Таблица1[[#This Row],[Оплачено случаев]]-Таблица1[[#This Row],[План ДВН, чел.]]","v":0},{"$f":"ROUND(Таблица1[[#This Row],[Оплачено случаев]]/Таблица1[[#This Row],[План ДВН, чел.]]*100,1)","v":{"$error":"#DIV/0!"}}]
["Декабрь","ДВН","Городская поликлиника",0,0,0,{"$f":"Таблица1[[#This Row],[Оплачено случаев]]-Таблица1[[#This Row],[План ДВН, чел.]]","v":0},{"$f":"ROUND(Таблица1[[#This Row],[Оплачено случаев]]/Таблица1[[#This Row],[План ДВН, чел.]]*100,1)","v":{"$error":"#DIV/0!"}}]
["Декабрь","ДВН","МСЧ № 1 г. Калуги",0,0,0,{"$f":"Таблица1[[#This Row],[Оплачено случаев]]-Таблица1[[#This Row],[План ДВН, чел.]]","v":0},{"$f":"ROUND(Таблица1[[#This Row],[Оплачено случаев]]/Таблица1[[#This Row],[План ДВН, чел.]]*100,1)","v":{"$error":"#DIV/0!"}}]
["Декабрь","ДВН","МСЧ № 2 г. Калуги",0,0,0,{"$f":"Таблица1[[#This Row],[Оплачено случаев]]-Таблица1[[#This Row],[План ДВН, чел.]]","v":0},{"$f":"ROUND(Таблица1[[#This Row],[Оплачено случаев]]/Таблица1[[#This Row],[План ДВН, чел.]]*100,1)","v":{"$error":"#DIV/0!"}}]
["Декабрь","ДВН","МСЧ МВД",0,0,0,{"$f":"Таблица1[[#This Row],[Оплачено случаев]]-Таблица1[[#This Row],[План ДВН, чел.]]","v":0},{"$f":"ROUND(Таблица1[[#This Row],[Оплачено случаев]]/Таблица1[[#This Row],[План ДВН, чел.]]*100,1)","v":{"$error":"#DIV/0!"}}]
["Декабрь","ДВН","ЧУЗ \"Больница \"РЖД - Медицина\" ",0,0,0,{"$f":"Таблица1[[#This Row],[Оплачено случаев]]-Таблица1[[#This Row],[План ДВН, чел.]]","v":0},{"$f":"ROUND(Таблица1[[#This Row],[Оплачено случаев]]/Таблица1[[#This Row],[План ДВН, чел.]]*100,1)","v":{"$error":"#DIV/0!"}}]
["Декабрь","ДВН","КБ № 8 ФМБА",0,0,0,{"$f":"Таблица1[[#This Row],[Оплачено случаев]]-Таблица1[[#This Row],[План ДВН, чел.]]","v":0},{"$f":"ROUND(Таблица1[[#This Row],[Оплачено случаев]]/Таблица1[[#This Row],[План ДВН, чел.]]*100,1)","v":{"$error":"#DIV/0!"}}]
["Декабрь","ДВН","ЦРБ Бабынинского района",0,0,0,{"$f":"Таблица1[[#This Row],[Оплачено случаев]]-Таблица1[[#This Row],[План ДВН, чел.]]","v":0},{"$f":"ROUND(Таблица1[[#This Row],[Оплачено случаев]]/Таблица1[[#This Row],[План ДВН, чел.]]*100,1)","v":{"$error":"#DIV/0!"}}]
["Декабрь","ДВН","ЦРБ Боровского района",0,0,0,{"$f":"Таблица1[[#This Row],[Оплачено случаев]]-Таблица1[[#This Row],[План ДВН, чел.]]","v":0},{"$f":"ROUND(Таблица1[[#This Row],[Оплачено случаев]]/Таблица1[[#This Row],[План ДВН, чел.]]*100,1)","v":{"$error":"#DIV/0!"}}]
["Декабрь","ДВН","ЦРБ Жуковского района",0,0,0,{"$f":"Таблица1[[#This Row],[Оплачено случаев]]-Таблица1[[#This Row],[План ДВН, чел.]]","v":0},{"$f":"ROUND(Таблица1[[#This Row],[Оплачено случаев]]/Таблица1[[#This Row],[План ДВН, чел.]]*100,1)","v":{"$error":"#DIV/0!"}}]
["Декабрь","ДВН","ГП \"Город Кременки\"",0,0,0,{"$f":"Таблица1[[#This Row],[Оплачено случаев]]-Таблица1[[#This Row],[План ДВН, чел.]]","v":0},{"$f":"ROUND(Таблица1[[#This Row],[Оплачено случаев]]/Таблица1[[#This Row],[План ДВН, чел.]]*100,1)","v":{"$error":"#DIV/0!"}}]
["Декабрь","ДВН","ЦРБ Малоярославецкого района",0,0,0,{"$f":"Таблица1[[#This Row],[Оплачено случаев]]-Таблица1[[#This Row],[План ДВН, чел.]]","v":0},{"$f":"ROUND(Таблица1[[#This Row],[Оплачено случаев]]/Таблица1[[#This Row],[План ДВН, чел.]]*100,1)","v":{"$error":"#DIV/0!"}}]
["Декабрь","ДВН","ЦРБ  Тарусского района",0,0,0,{"$f":"Таблица1[[#This Row],[Оплачено случаев]]-Таблица1[[#This Row],[План ДВН, чел.]]","v":0},{"$f":"ROUND(Таблица1[[#This Row],[Оплачено случаев]]/Таблица1[[#This Row],[План ДВН, чел.]]*100,1)","v":{"$error":"#DIV/0!"}}]

{"sheet":"Все МО","index":1,"n_rows":24,"n_cols":3,"rows_kept":24,"cut":false,"hidden":true,"merged":[]}
["Месяц","Март"]
[]
["Названия строк","Оплачено случаев ","План ДВН, чел. "]
["МСЧ МВД",0,0]
["МСЧ № 2 г. Калуги",57,12]
["ГП \"Город Кременки\"",213,280]
["ЧУЗ \"Больница \"РЖД - Медицина\" ",256,195]
["ЦМБ № 4",325,383]
["ЦРБ  Тарусского района",378,362]
["МСЧ № 1 г. Калуги",396,200]
["ЦМБ № 3",527,852]
["ЦРБ Бабынинского района",610,464]
["ЦРБ Жуковского района",663,490]
["ЦРБ Малоярославецкого района",1044,964]
["ЦМБ № 5",1594,973]
["ЦМБ № 1",1606,1107]
["ЦМБ № 2",1931,2065]
["ЦРБ Боровского района",2050,1280]
["ЦМБ № 6",2118,1500]
["Городская поликлиника",2139,1506]
["КГБ № 5",4056,3900]
["КГКБ № 4",4229,3193]
["КБ № 8 ФМБА",4585,4500]
["Общий итог",28777,24226]

{"sheet":"10 лучших","index":2,"n_rows":14,"n_cols":2,"rows_kept":14,"cut":false,"hidden":true,"merged":[]}
["Месяц","Март"]
[]
["Названия строк","% выполнения "]
["ЦРБ Бабынинского района",131.5]
["КГКБ № 4",132.4]
["ЦРБ Жуковского района",135.30000000000001]
["ЦМБ № 6",141.19999999999999]
["Городская поликлиника",142]
["ЦМБ № 1",145.1]
["ЦРБ Боровского района",160.19999999999999]
["ЦМБ № 5",163.80000000000001]
["МСЧ № 1 г. Калуги",198]
["МСЧ № 2 г. Калуги",475]
["Общий итог",182.45]

{"sheet":"10 худших","index":3,"n_rows":14,"n_cols":2,"rows_kept":14,"cut":false,"hidden":true,"merged":[]}
["Месяц","Март"]
[]
["Названия строк","% выполнения "]
["ЦМБ № 3",61.9]
["ГП \"Город Кременки\"",76.099999999999994]
["ЦМБ № 4",84.9]
["ЦМБ № 2",93.5]
["КБ № 8 ФМБА",101.9]
["КГБ № 5",104]
["ЦРБ  Тарусского района",104.4]
["ЦРБ Малоярославецкого района",108.3]
["ЧУЗ \"Больница \"РЖД - Медицина\" ",131.30000000000001]
["ЦРБ Бабынинского района",131.5]
["Общий итог",99.78]

{"sheet":"Помесячно по МО","index":4,"n_rows":16,"n_cols":4,"rows_kept":16,"cut":false,"hidden":true,"merged":[]}
["Выполнение ДВН"]
[]
["Названия строк","Оплачено случаев ","План ДВН, чел. ","Отклонение "]
["Январь",2037,1449,588]
["Февраль",2589,1506,1083]
["Март",2139,1506,633]
["Апрель",0,0,0]
["Май",0,0,0]
["Июнь",0,0,0]
["Июль",0,0,0]
["Август",0,0,0]
["Сентябрь",0,0,0]
["Октябрь",0,0,0]
["Ноябрь",0,0,0]
["Декабрь",0,0,0]
["Общий итог",6765,4461,2304]

{"sheet":"Дашборд ДВН","index":5,"n_rows":2,"n_cols":1,"rows_kept":2,"cut":false,"hidden":false,"merged":[[1,0,1,24]]}
[]
["ДИСПАНСЕРИЗАЦИЯ ВЗРОСЛОГО НАСЕЛЕНИЯ В 2024 ГОДУ"]